Workbook

Sheet ORÇAMENTO
B2: ORÇAMENTO REFERENCIAL
B3: Ponte sobre o rio Paraim (Flores de Goiás - GO) | L3: Extensão: 0,045 km
H4: BDI | I4: ='BDI '!G29/100 -> 0.249 | L4: Empresa executora:
H5: BDI REDUZIDO | I5: 0.15 | L5: Região: GO
B6: Órgão responsável: CODEVASF | L6: sem desoneração
B9: ITEM | C9: CÓDIGO | D9: DESCRIÇÃO DO SERVIÇO | E9: UNIDADE | F9: BASE REFERENCIAL | G9: QUANTIDADE | H9: CUSTO UNITÁRIO (R$) | I9: BDI % | J9: DT | K9: PREÇO UNITÁRIO (R$) | L9: PREÇO TOTAL (R$)
B11: 1. | D11: CUSTOS INDIRETOS | L11: =SUM(L12:L17) -> 1232404.28
B12: 1.1. | C12: CA0001 | D12: ADMINISTRAÇÃO LOCAL | E12: UN | F12: SICRO | G12: 1 | H12: 371675.45 | I12: =IF(E12="","",$I$4) -> 0.249 | K12: =IF(E12="","",ROUND(H12*(1+I12),2)) -> 464222.64 | L12: =IF(E12="","",ROUND(G12*K12,2)) -> 464222.64
B13: 1.2. | C13: CA0002 | D13: CANTEIRO DE OBRAS | E13: UN | F13: SICRO | G13: 1 | H13: 532976.75 | I13: 0.249 | K13: 665687.96 | L13: 665687.96
B14: 1.3. | C14: CA0003 | D14: MOBILIZAÇÃO E DESMOBILIZAÇÃO | E14: UN | F14: SICRO | G14: 1 | H14: 69968 | I14: 0.249 | K14: 87390.03 | L14: 87390.03
B15: 1.4. | D15: SERVIÇOS PRELIMINARES | G15: 0 | I15: =IF(E15="","",$I$4) ->  | K15: =IF(E15="","",ROUND(H15*(1+I15),2)) ->  | L15: =IF(E15="","",ROUND(G15*K15,2)) -> 
B16: 1.4.1. | C16: 5213570 | D16: PLACA EM AÇO - PELÍCULA I + I - FORNECIMENTO E IMPLANTAÇÃO | E16: M² | F16: SICRO | G16: 25 | H16: 455.81 | I16: 0.249 | K16: 569.31 | L16: 14232.75
B17: 1.4.2. | C17: 5216111 | D17: SUPORTE PARA PLACA DE SINALIZAÇÃO EM MADEIRA DE LEI TRATADA 8 X 8 CM - FORNECIMENTO E IMPLANTAÇÃO | E17: UN | F17: SICRO | G17: 6 | H17: 116.21 | I17: 0.249 | K17: 145.15 | L17: 870.9
B18: 2. | D18: TERRAPLANAGEM | G18: 0 | L18: =SUM(L19:L23) -> 294740.46
B19: 2.1. | C19: 5501700 | D19: DESMATAMENTO, DESTOCAMENTO E LIMPEZA DE ÁREA COM ÁRVORES DE DIÂMETRO ATÉ 0,15 M | E19: M² | F19: SICRO | G19: 5460.33 | H19: 0.52 | I19: 0.249 | K19: 0.65 | L19: 3549.21
B20: 2.2. | C20: 5502985 | D20: LIMPEZA MECANIZADA DA CAMADA VEGETAL | E20: M² | F20: SICRO | G20: 20295.04 | H20: 0.48 | I20: 0.249 | K20: 0.6 | L20: 12177.02
B21: 2.3. | C21: 5501710 | D21: ESCAVAÇÃO, CARGA E TRANSPORTE EM MATERIAL DE 1ª CATEGORIA - DMT DE 50 M | E21: M³ | F21: SICRO | G21: 9.56 | H21: 2.8 | I21: 0.249 | K21: 3.5 | L21: 33.46
B22: 2.4. | C22: 5502142 | D22: ESCAVAÇÃO, CARGA E TRANSPORTE DE MATERIAL DE 1ª CATEGORIA - DMT DE 1.400 A 1.600 M - CAMINHO DE SERVIÇO EM REVESTIMENTO PRIMÁRIO - COM ESCAVADEIRA E CAMINHÃO BASCULANTE DE 14 M³ | E22: M³ | F22: SICRO | G22: 20295.04 | H22: 7.17 | I22: 0.249 | K22: 8.96 | L22: 181843.56
B23: 2.5. | C23: 5502978 | D23: Compactação de aterros a 100% do Proctor normal | E23: M³ | F23: SICRO | G23: 16243.68 | H23: 4.79 | I23: 0.249 | K23: 5.98 | L23: 97137.21
B24: 3. | D24: GABIÃO | G24: 0 | L24: =SUM(L25:L35) -> 2693651.59
B25: 3.1. | C25: 3205864 | D25: GABIÃO CAIXA 2 X 1 X 0,50 M - ZN/AL + PVC - D = 2,4 MM - PEDRA DE MÃO COMERCIAL - FORNECIMENTO E ASSENTAMENTO | E25: M³ | F25: SICRO | G25: 920.13 | H25: 1013.6 | I25: 0.249 | K25: 1265.99 | L25: 1164875.38
B26: 3.2. | C26: 3205866 | D26: GABIÃO CAIXA 2 X 1 X 1,00 M - ZN/AL + PVC - D = 2,4 MM - PEDRA DE MÃO COMERCIAL - FORNECIMENTO E ASSENTAMENTO | E26: M³ | F26: SICRO | G26: 995.22 | H26: 778.16 | I26: 0.249 | K26: 971.92 | L26: 967274.22
B27: 3.3. | C27: 3205876 | D27: GABIÃO COLCHÃO ESPESSURA 0,30 M - ZN/AL + PVC - D = 2,0 MM - PEDRA DE MÃO COMERCIAL - FORNECIMENTO E ASSENTAMENTO | E27: M² | F27: SICRO | G27: 138.63 | H27: 327.64 | I27: 0.249 | K27: 409.22 | L27: 56730.17
B28: 3.4. | C28: 5501706 | D28: ESCAVAÇÃO MECÂNICA COM RETROESCAVADEIRA EM MATERIAL DE 1ª CATEGORIA | E28: M³ | F28: SICRO | G28: 2232.95 | H28: 7.03 | I28: 0.249 | K28: 8.78 | L28: 19605.3
B29: 3.5. | C29: 2003867 | D29: APLICAÇÃO DE GEOTÊXTIL NÃO-TECIDO AGULHADO COM RESISTÊNCIA À TRAÇÃO LONGITUDINAL DE 31 KN/M | E29: M² | F29: SICRO | G29: 1844.93 | H29: 15.81 | I29: 0.249 | K29: 19.75 | L29: 36437.37
B30: 3.6. | C30: 1505877 | D30: ENROCAMENTO DE PEDRA ESPALHADA E COMPACTADA MECANICAMENTE - PEDRA DE MÃO COMERCIAL - FORNECIMENTO E ASSENTAMENTO | E30: M³ | F30: SICRO | G30: 133.49 | H30: 177.14 | I30: 0.249 | K30: 221.25 | L30: 29534.66
B31: 3.7. | C31: 4815671 | D31: REATERRO E COMPACTAÇÃO COM SOQUETE VIBRATÓRIO | E31: M³ | F31: SICRO | G31: 948.54 | H31: 15.81 | I31: 0.249 | K31: 19.75 | L31: 18733.67
B32: 3.8. | C32: 5915320 | D32: TRANSPORTE COM CAMINHÃO BASCULANTE DE 14 M³ - RODOVIA EM REVESTIMENTO PRIMÁRIO | E32: TKM | F32: SICRO | G32: 253120.12 | H32: 0.67 | I32: 0.249 | J32: 70 | K32: 0.84 | L32: 212620.9
B33: 3.9. | C33: 5915321 | D33: TRANSPORTE COM CAMINHÃO BASCULANTE DE 14 M³ - RODOVIA PAVIMENTADA | E33: TKM | F33: SICRO | G33: 276624.14 | H33: 0.54 | I33: 0.249 | J33: 76.5 | K33: 0.67 | L33: 185338.17
B34: 3.10. | C34: 5914464 | D34: TRANSPORTE COM CAMINHÃO CARROCERIA DE 15 T - RODOVIA EM REVESTIMENTO PRIMÁRIO | E34: TKM | F34: SICRO | G34: 121.72 | H34: 0.85 | I34: 0.249 | J34: 6 | K34: 1.06 | L34: 129.02
B35: 3.11. | C35: 5914479 | D35: TRANSPORTE COM CAMINHÃO CARROCERIA DE 15 T - RODOVIA PAVIMENTADA | E35: TKM | F35: SICRO | G35: 2758.99 | H35: 0.69 | I35: 0.249 | J35: 136 | K35: 0.86 | L35: 2372.73
B36: 4. | D36: OBRA DE ARTE ESPECIAL | G36: 0 | L36: =SUM(L37:L87) -> 1827867.99
B37: 4.1. | D37: INFRAESTRUTURA | G37: 0
B38: 4.1.1. | C38: 1513940 | D38: CONTENÇÃO EM SOLO-CIMENTO ENSACADO COM MISTURA DE SOLO DE JAZIDA COM 8% DE CIMENTO - CONFECÇÃO E ASSENTAMENTO | E38: M³ | F38: SICRO | G38: 160.2 | H38: 339.01 | I38: 0.249 | K38: 423.42 | L38: 67831.88
B39: 4.1.2. | C39: 4805749 | D39: ESCAVAÇÃO MANUAL DE VALA EM MATERIAL DE 1ª CATEGORIA | E39: M³ | F39: SICRO | G39: 98.28 | H39: 69.44 | I39: 0.249 | K39: 86.73 | L39: 8523.82
B40: 4.1.3. | C40: 4815671 | D40: REATERRO E COMPACTAÇÃO COM SOQUETE VIBRATÓRIO | E40: M³ | F40: SICRO | G40: 52.2 | H40: 15.81 | I40: 0.249 | K40: 19.75 | L40: 1030.95
B41: 4.1.4. | C41: 2306066 | D41: ESTACA RAIZ PERFURADA NO SOLO COM D = 40 CM - CONFECÇÃO | E41: M | F41: SICRO | G41: 108 | H41: 226.16 | I41: 0.249 | K41: 282.47 | L41: 30506.76
B42: 4.1.5. | C42: 2306071 | D42: ESTACA RAIZ PERFURADA NA ROCHA COM D = 40 CM - CONFECÇÃO | E42: M | F42: SICRO | G42: 144 | H42: 1838.41 | I42: 0.249 | K42: 2296.17 | L42: 330648.48
B43: 4.1.6. | C43: 2306248 | D43: ARRASAMENTO DE ESTACAS DE CONCRETO COM SEÇÃO SUPERIOR À 900 CM² | E43: M³ | F43: SICRO | G43: 0.45 | H43: 533.34 | I43: 0.249 | K43: 666.14 | L43: 299.76
B44: 4.1.7. | C44: 3106121 | D44: FÔRMAS DE TÁBUAS DE PINHO - UTILIZAÇÃO DE 3 VEZES - CONFECÇÃO, INSTALAÇÃO E RETIRADA | E44: M² | F44: SICRO | G44: 74.88 | H44: 90.97 | I44: 0.249 | K44: 113.62 | L44: 8507.87
B45: 4.1.8. | C45: 407819 | D45: ARMAÇÃO EM AÇO CA-50 - FORNECIMENTO, PREPARO E COLOCAÇÃO | E45: KG | F45: SICRO | G45: 17208 | H45: 12.28 | I45: 0.249 | K45: 15.34 | L45: 263970.72
B46: 4.1.9. | C46: 1107888 | D46: CONCRETO FCK = 15 MPA - CONFECÇÃO EM BETONEIRA E LANÇAMENTO MANUAL - AREIA E BRITA COMERCIAIS | E46: M³ | F46: SICRO | G46: 1.92 | H46: 441.01 | I46: 0.249 | K46: 550.82 | L46: 1057.57
B47: 4.1.10. | C47: 1107900 | D47: CONCRETO FCK = 30 MPA - CONFECÇÃO EM BETONEIRA E LANÇAMENTO MANUAL - AREIA E BRITA COMERCIAIS | E47: M³ | F47: SICRO | G47: 46.08 | H47: 494.36 | I47: 0.249 | K47: 617.46 | L47: 28452.56
B48: 4.2. | D48: MESOESTRUTURA | G48: 0
B49: 4.2.1. | C49: 2108170 | D49: ESCORAMENTO COM PONTALETES D = 15 CM - UTILIZAÇÃO DE 2 VEZES - CONFECÇÃO, INSTALAÇÃO E RETIRADA | E49: M³ | F49: SICRO | G49: 295.28 | H49: 36.35 | I49: 0.249 | K49: 45.4 | L49: 13405.71
B50: 4.2.2. | C50: 3108017 | D50: FÔRMAS DE COMPENSADO PLASTIFICADO 14 MM - USO GERAL - UTILIZAÇÃO DE 3 VEZES - CONFECÇÃO, INSTALAÇÃO E RETIRADA | E50: M² | F50: SICRO | G50: 160.62 | H50: 81.38 | I50: 0.249 | K50: 101.64 | L50: 16325.42
B51: 4.2.3. | C51: 1107900 | D51: CONCRETO FCK = 30 MPA - CONFECÇÃO EM BETONEIRA E LANÇAMENTO MANUAL - AREIA E BRITA COMERCIAIS | E51: M³ | F51: SICRO | G51: 39.15 | H51: 494.36 | I51: 0.249 | K51: 617.46 | L51: 24173.56
B52: 4.2.4. | C52: 1109680 | D52: ARGAMASSA PARA REPAROS E GRAUTEAMENTO - CONFECÇÃO EM MISTURADOR E LANÇAMENTO MANUAL | E52: M³ | F52: SICRO | G52: 0.07 | H52: 3341.44 | I52: 0.249 | K52: 4173.46 | L52: 292.14
B53: 4.2.5. | C53: 407819 | D53: ARMAÇÃO EM AÇO CA-50 - FORNECIMENTO, PREPARO E COLOCAÇÃO | E53: KG | F53: SICRO | G53: 3385 | H53: 12.28 | I53: 0.249 | K53: 15.34 | L53: 51925.9
B54: 4.2.6. | C54: 407820 | D54: ARMAÇÃO EM AÇO CA-60 - FORNECIMENTO, PREPARO E COLOCAÇÃO | E54: KG | F54: SICRO | G54: 677 | H54: 13.63 | I54: 0.249 | K54: 17.02 | L54: 11522.54
B55: 4.2.7. | C55: 307731 | D55: APARELHO DE APOIO DE NEOPRENE FRETADO PARA ESTRUTURAS MOLDADAS NO LOCAL - FORNECIMENTO E INSTALAÇÃO | E55: DM³ | F55: SICRO | G55: 52.5 | H55: 115.61 | I55: 0.249 | K55: 144.4 | L55: 7581
B56: 4.3. | D56: SUPERESTRUTURA | G56: 0
B57: 4.3.1. | D57: SUPERESTRUTURA LONGARINA | G57: 0
B58: 4.3.1.1. | C58: 3108017 | D58: FÔRMAS DE COMPENSADO PLASTIFICADO 14 MM - USO GERAL - UTILIZAÇÃO DE 3 VEZES - CONFECÇÃO, INSTALAÇÃO E RETIRADA | E58: M² | F58: SICRO | G58: 310.5 | H58: 81.38 | I58: 0.249 | K58: 101.64 | L58: 31559.22
B59: 4.3.1.2. | C59: 1107900 | D59: CONCRETO FCK = 30 MPA - CONFECÇÃO EM BETONEIRA E LANÇAMENTO MANUAL - AREIA E BRITA COMERCIAIS | E59: M³ | F59: SICRO | G59: 71.78 | H59: 494.36 | I59: 0.249 | K59: 617.46 | L59: 44321.28
B60: 4.3.1.3. | C60: 407819 | D60: ARMAÇÃO EM AÇO CA-50 - FORNECIMENTO, PREPARO E COLOCAÇÃO | E60: KG | F60: SICRO | G60: 11484.8 | H60: 12.28 | I60: 0.249 | K60: 15.34 | L60: 176176.83
B61: 4.3.2. | D61: SUPERESTRUTURA (LAJE+TRANSVERSINAS+ALAS | G61: 0
B62: 4.3.2.1. | C62: 2108170 | D62: ESCORAMENTO COM PONTALETES D = 15 CM - UTILIZAÇÃO DE 2 VEZES - CONFECÇÃO, INSTALAÇÃO E RETIRADA | E62: M³ | F62: SICRO | G62: 3428.55 | H62: 36.35 | I62: 0.249 | K62: 45.4 | L62: 155656.17
B63: 4.3.2.2. | C63: 3108017 | D63: FÔRMAS DE COMPENSADO PLASTIFICADO 14 MM - USO GERAL - UTILIZAÇÃO DE 3 VEZES - CONFECÇÃO, INSTALAÇÃO E RETIRADA | E63: M² | F63: SICRO | G63: 453.99 | H63: 81.38 | I63: 0.249 | K63: 101.64 | L63: 46143.54
B64: 4.3.2.3. | C64: 1107900 | D64: CONCRETO FCK = 30 MPA - CONFECÇÃO EM BETONEIRA E LANÇAMENTO MANUAL - AREIA E BRITA COMERCIAIS | E64: M³ | F64: SICRO | G64: 104.97 | H64: 494.36 | I64: 0.249 | K64: 617.46 | L64: 64814.78
B65: 4.3.2.4. | C65: 407819 | D65: ARMAÇÃO EM AÇO CA-50 - FORNECIMENTO, PREPARO E COLOCAÇÃO | E65: KG | F65: SICRO | G65: 14808.15 | H65: 12.28 | I65: 0.249 | K65: 15.34 | L65: 227157.02
B66: 4.3.3. | D66: LAJE DE TRANSIÇÃO | G66: 0
B67: 4.3.3.1. | C67: 3108017 | D67: FÔRMAS DE COMPENSADO PLASTIFICADO 14 MM - USO GERAL - UTILIZAÇÃO DE 3 VEZES - CONFECÇÃO, INSTALAÇÃO E RETIRADA | E67: M² | F67: SICRO | G67: 12.32 | H67: 81.38 | I67: 0.249 | K67: 101.64 | L67: 1252.2
B68: 4.3.3.2. | C68: 1107900 | D68: CONCRETO FCK = 30 MPA - CONFECÇÃO EM BETONEIRA E LANÇAMENTO MANUAL - AREIA E BRITA COMERCIAIS | E68: M³ | F68: SICRO | G68: 15.02 | H68: 494.36 | I68: 0.249 | K68: 617.46 | L68: 9274.25
B69: 4.3.3.3. | C69: 407819 | D69: ARMAÇÃO EM AÇO CA-50 - FORNECIMENTO, PREPARO E COLOCAÇÃO | E69: KG | F69: SICRO | G69: 901.2 | H69: 12.28 | I69: 0.249 | K69: 15.34 | L69: 13824.41
B70: 4.3.4. | D70: BARREIRA NEW JERSEY | G70: 0
B71: 4.3.4.1. | C71: 3108017 | D71: FÔRMAS DE COMPENSADO PLASTIFICADO 14 MM - USO GERAL - UTILIZAÇÃO DE 3 VEZES - CONFECÇÃO, INSTALAÇÃO E RETIRADA | E71: M² | F71: SICRO | G71: 158.4 | H71: 81.38 | I71: 0.249 | K71: 101.64 | L71: 16099.78
B72: 4.3.4.2. | C72: 1107900 | D72: CONCRETO FCK = 30 MPA - CONFECÇÃO EM BETONEIRA E LANÇAMENTO MANUAL - AREIA E BRITA COMERCIAIS | E72: M³ | F72: SICRO | G72: 21.08 | H72: 494.36 | I72: 0.249 | K72: 617.46 | L72: 13016.06
B73: 4.3.4.3. | C73: 407819 | D73: ARMAÇÃO EM AÇO CA-50 - FORNECIMENTO, PREPARO E COLOCAÇÃO | E73: KG | F73: SICRO | G73: 2529.6 | H73: 12.28 | I73: 0.249 | K73: 15.34 | L73: 38804.06
B74: 4.3.5. | D74: DIVERSOS | G74: 0
B75: 4.3.5.1. | C75: 2007971 | D75: DRENO DE PVC D = 100 MM PARA OAE - FORNECIMENTO E INSTALAÇÃO | E75: M | F75: SICRO | G75: 22 | H75: 98.06 | I75: =IF(E75="","",$I$4) -> 0.249 | K75: =IF(E75="","",ROUND(H75*(1+I75),2)) -> 122.48 | L75: =IF(E75="","",ROUND(G75*K75,2)) -> 2694.56
B76: 4.3.5.2. | C76: 1107896 | D76: CONCRETO FCK = 25 MPA - CONFECÇÃO EM BETONEIRA E LANÇAMENTO MANUAL - AREIA E BRITA COMERCIAIS | E76: M³ | F76: SICRO | G76: 26.01 | H76: 474.59 | I76: 0.249 | K76: 592.76 | L76: 15417.69
B77: 4.4. | D77: TRANSPORTE | G77: 0
B78: 4.4.1. | C78: 5915320 | D78: TRANSPORTE COM CAMINHÃO BASCULANTE DE 14 M³ - RODOVIA EM REVESTIMENTO PRIMÁRIO | E78: TKM | F78: SICRO | G78: 25162.56 | H78: 0.67 | I78: 0.249 | J78: 70 | K78: 0.84 | L78: 21136.55
B79: 4.4.2. | C79: 5915320 | D79: TRANSPORTE COM CAMINHÃO BASCULANTE DE 14 M³ - RODOVIA EM REVESTIMENTO PRIMÁRIO | E79: TKM | F79: SICRO | G79: 1992.19 | H79: 0.67 | I79: 0.249 | J79: 6 | K79: 0.84 | L79: 1673.44
B80: 4.4.3. | C80: 5915321 | D80: TRANSPORTE COM CAMINHÃO BASCULANTE DE 14 M³ - RODOVIA PAVIMENTADA | E80: TKM | F80: SICRO | G80: 27499.08 | H80: 0.54 | I80: 0.249 | J80: 76.5 | K80: 0.67 | L80: 18424.38
B81: 4.4.4. | C81: 5915321 | D81: TRANSPORTE COM CAMINHÃO BASCULANTE DE 14 M³ - RODOVIA PAVIMENTADA | E81: TKM | F81: SICRO | G81: 53858.91 | H81: 0.54 | I81: 0.249 | J81: 162.21 | K81: 0.67 | L81: 36085.47
B82: 4.4.5. | C82: 5914464 | D82: TRANSPORTE COM CAMINHÃO CARROCERIA DE 15 T - RODOVIA EM REVESTIMENTO PRIMÁRIO | E82: TKM | F82: SICRO | G82: 808.6 | H82: 0.85 | I82: 0.249 | J82: 6 | K82: 1.06 | L82: 857.12
B83: 4.4.6. | C83: 5914479 | D83: TRANSPORTE COM CAMINHÃO CARROCERIA DE 15 T - RODOVIA PAVIMENTADA | E83: TKM | F83: SICRO | G83: 15485.72 | H83: 0.69 | I83: 0.249 | J83: 136 | K83: 0.86 | L83: 13317.72
B84: 4.4.7. | C84: 5914464 | D84: TRANSPORTE COM CAMINHÃO CARROCERIA DE 15 T - RODOVIA EM REVESTIMENTO PRIMÁRIO | E84: TKM | F84: SICRO | G84: 478.99 | H84: 0.85 | I84: 0.249 | J84: 6 | K84: 1.06 | L84: 507.73
B85: 4.4.8. | C85: 5914479 | D85: TRANSPORTE COM CAMINHÃO CARROCERIA DE 15 T - RODOVIA PAVIMENTADA | E85: TKM | F85: SICRO | G85: 10857.22 | H85: 0.69 | I85: 0.249 | J85: 136 | K85: 0.86 | L85: 9337.21
B86: 4.4.9. | C86: 5914464 | D86: TRANSPORTE COM CAMINHÃO CARROCERIA DE 15 T - RODOVIA EM REVESTIMENTO PRIMÁRIO | E86: TKM | F86: SICRO | G86: 343.72 | H86: 0.85 | I86: 0.249 | J86: 6 | K86: 1.06 | L86: 364.34
B87: 4.4.10. | C87: 5914481 | D87: TRANSPORTE DE MATERIAIS METÁLICOS E ACESSÓRIOS DIVERSOS COM LOCOMOTIVA DIESEL-ELÉTRICA EM VAGÃO FECHADO COM CAPACIDADE DE 99 T - BITOLA LARGA | E87: TKM | F87: SICRO | G87: 7791.07 | H87: 0.4 | I87: 0.249 | J87: 136 | K87: 0.5 | L87: 3895.54
B88: 5. | D88: OBRA DE ARTE CORRENTE | G88: 0 | L88: =SUM(L89:L101) -> 29471.44
B89: 5.1. | C89: 804193 | D89: CORPO DE BDTC D = 1,00 M PA3 - AREIA, BRITA E PEDRA DE MÃO COMERCIAIS | E89: M | F89: SICRO | G89: 7.5 | H89: 1746.31 | I89: 0.249 | K89: 2181.14 | L89: 16358.55
B90: 5.2. | C90: 804421 | D90: BOCA DE BDTC D = 1,00 M - ESCONSIDADE 30° - AREIA E BRITA COMERCIAIS - ALAS ESCONSAS | E90: UN | F90: SICRO | G90: 1 | H90: 4415.31 | I90: 0.249 | K90: 5514.72 | L90: 5514.72
B91: 5.3. | C91: 1600989 | D91: DEMOLIÇÃO DE CONCRETO SIMPLES COM MARTELETE | E91: M³ | F91: SICRO | G91: 2.01 | H91: 393.06 | I91: 0.249 | K91: 490.93 | L91: 986.77
B92: 5.4. | C92: 5915320 | D92: TRANSPORTE COM CAMINHÃO BASCULANTE DE 14 M³ - RODOVIA EM REVESTIMENTO PRIMÁRIO | E92: TKM | F92: SICRO | G92: 462.1 | H92: 0.67 | I92: 0.249 | J92: 70 | K92: 0.84 | L92: 388.16
B93: 5.5. | C93: 5915320 | D93: TRANSPORTE COM CAMINHÃO BASCULANTE DE 14 M³ - RODOVIA EM REVESTIMENTO PRIMÁRIO | E93: TKM | F93: SICRO | G93: 70.44 | H93: 0.67 | I93: 0.249 | J93: 6 | K93: 0.84 | L93: 59.17
B94: 5.6. | C94: 5915321 | D94: TRANSPORTE COM CAMINHÃO BASCULANTE DE 14 M³ - RODOVIA PAVIMENTADA | E94: TKM | F94: SICRO | G94: 1026.29 | H94: 0.54 | I94: 0.249 | J94: 76.5 | K94: 0.67 | L94: 687.61
B95: 5.7. | C95: 5915321 | D95: TRANSPORTE COM CAMINHÃO BASCULANTE DE 14 M³ - RODOVIA PAVIMENTADA | E95: TKM | F95: SICRO | G95: 1904.48 | H95: 0.54 | I95: 0.249 | J95: 162.21 | K95: 0.67 | L95: 1276
B96: 5.8. | C96: 5914464 | D96: TRANSPORTE COM CAMINHÃO CARROCERIA DE 15 T - RODOVIA EM REVESTIMENTO PRIMÁRIO | E96: TKM | F96: SICRO | G96: 20.87 | H96: 0.85 | I96: 0.249 | J96: 6 | K96: 1.06 | L96: 22.12
B97: 5.9. | C97: 5914479 | D97: TRANSPORTE COM CAMINHÃO CARROCERIA DE 15 T - RODOVIA PAVIMENTADA | E97: TKM | F97: SICRO | G97: 473.17 | H97: 0.69 | I97: 0.249 | J97: 136 | K97: 0.86 | L97: 406.93
B98: 5.10. | C98: 5914464 | D98: TRANSPORTE COM CAMINHÃO CARROCERIA DE 15 T - RODOVIA EM REVESTIMENTO PRIMÁRIO | E98: TKM | F98: SICRO | G98: 2.53 | H98: 0.85 | I98: 0.249 | J98: 6 | K98: 1.06 | L98: 2.68
B99: 5.11. | C99: 5914479 | D99: TRANSPORTE COM CAMINHÃO CARROCERIA DE 15 T - RODOVIA PAVIMENTADA | E99: TKM | F99: SICRO | G99: 57.31 | H99: 0.69 | I99: 0.249 | J99: 136 | K99: 0.86 | L99: 49.29
B100: 5.12. | C100: 5915013 | D100: TRANSPORTE COM CAMINHÃO CARROCERIA COM CAPACIDADE DE 11 T E COM GUINDAUTO DE 45 T.M - RODOVIA EM REVESTIMENTO PRIMÁRIO | E100: TKM | F100: SICRO | G100: 91.03 | H100: 1.68 | I100: 0.249 | J100: 6 | K100: 2.1 | L100: 191.16
B101: 5.13. | C101: 5915014 | D101: TRANSPORTE COM CAMINHÃO CARROCERIA COM CAPACIDADE DE 11 T E COM GUINDAUTO DE 45 T.M - RODOVIA PAVIMENTADA | E101: TKM | F101: SICRO | G101: 2063.32 | H101: 1.37 | I101: 0.249 | J101: 136 | K101: 1.71 | L101: 3528.28
B102: 6. | D102: SINALIZAÇÃO | G102: 0 | L102: =SUM(L103:L108) -> 3958.82
B103: 6.1. | C103: 5213464 | D103: PLACA DE ADVERTÊNCIA EM AÇO, LADO DE 0,60 M - PELÍCULA RETRORREFLETIVA TIPO I + SI - FORNECIMENTO E IMPLANTAÇÃO | E103: UN | F103: SICRO | G103: 4 | H103: 245.28 | I103: 0.249 | K103: 306.35 | L103: 1225.4
B104: 6.2. | C104: 5213572 | D104: PLACA EM AÇO - PELÍCULA III + III - FORNECIMENTO E IMPLANTAÇÃO | E104: M² | F104: SICRO | G104: 0.57 | H104: 585.93 | I104: 0.249 | K104: 731.83 | L104: 417.14
B105: 6.3. | C105: 5213477 | D105: PLACA DELINEADOR EM AÇO - 0,30 X 0,90 M - PELÍCULA RETRORREFLETIVA TIPO I + IV - FORNECIMENTO E IMPLANTAÇÃO | E105: UN | F105: SICRO | G105: 4 | H105: 166.27 | I105: 0.249 | K105: 207.67 | L105: 830.68
B106: 6.4. | C106: 5216111 | D106: SUPORTE PARA PLACA DE SINALIZAÇÃO EM MADEIRA DE LEI TRATADA 8 X 8 CM - FORNECIMENTO E IMPLANTAÇÃO | E106: UN | F106: SICRO | G106: 10 | H106: 116.21 | I106: 0.249 | K106: 145.15 | L106: 1451.5
B107: 6.5. | C107: 5914464 | D107: TRANSPORTE COM CAMINHÃO CARROCERIA DE 15 T - RODOVIA EM REVESTIMENTO PRIMÁRIO | E107: TKM | F107: SICRO | G107: 1.66 | H107: 0.85 | I107: 0.249 | J107: 6 | K107: 1.06 | L107: 1.76
B108: 6.6. | C108: 5914479 | D108: TRANSPORTE COM CAMINHÃO CARROCERIA DE 15 T - RODOVIA PAVIMENTADA | E108: TKM | F108: SICRO | G108: 37.61 | H108: 0.69 | I108: 0.249 | J108: 136 | K108: 0.86 | L108: 32.34
B109: 7. | D109: OBRAS COMPLEMENTARES | G109: 0 | L109: =SUM(L110:L117) -> 245909.8
B110: 7.1. | C110: 3713613 | D110: CERCA COM 4 FIOS DE ARAME LISO GALVANIZADO E MOURÃO DE MADEIRA A CADA 2,5 M E ESTICADOR A CADA 50 M | E110: M | F110: SICRO | G110: 79 | H110: 19.7 | I110: 0.249 | K110: 24.61 | L110: 1944.19
B111: 7.2. | C111: 1600966 | D111: REMOÇÃO DE CERCA COM MOURÕES DE CONCRETO | E111: M | F111: SICRO | G111: 64 | H111: 0.71 | I111: 0.249 | K111: 0.89 | L111: 56.96
B112: 7.3. | C112: 4413200 | D112: PLANTIO DE GRAMA COMERCIAL EM PLACAS | E112: M² | F112: SICRO | G112: 3971.28 | H112: 14.86 | I112: 0.249 | K112: 18.56 | L112: 73706.96
B113: 7.4. | C113: 4413905 | D113: HIDROSSEMEADURA | E113: M² | F113: SICRO | G113: 20304.6 | H113: 6.16 | I113: 0.249 | K113: 7.69 | L113: 156142.37
B114: 7.5. | C114: 5914464 | D114: TRANSPORTE COM CAMINHÃO CARROCERIA DE 15 T - RODOVIA EM REVESTIMENTO PRIMÁRIO | E114: TKM | F114: SICRO | G114: 3.69 | H114: 0.85 | I114: 0.249 | J114: 6 | K114: 1.06 | L114: 3.91
B115: 7.6. | C115: 5914479 | D115: TRANSPORTE COM CAMINHÃO CARROCERIA DE 15 T - RODOVIA PAVIMENTADA | E115: TKM | F115: SICRO | G115: 83.7 | H115: 0.69 | I115: 0.249 | J115: 136 | K115: 0.86 | L115: 71.98
B116: 7.7. | C116: 5914464 | D116: TRANSPORTE COM CAMINHÃO CARROCERIA DE 15 T - RODOVIA EM REVESTIMENTO PRIMÁRIO | E116: TKM | F116: SICRO | G116: 680.35 | H116: 0.85 | I116: 0.249 | J116: 6 | K116: 1.06 | L116: 721.17
B117: 7.8. | C117: 5914479 | D117: TRANSPORTE COM CAMINHÃO CARROCERIA DE 15 T - RODOVIA PAVIMENTADA | E117: TKM | F117: SICRO | G117: 15421.23 | H117: 0.69 | I117: 0.249 | J117: 136 | K117: 0.86 | L117: 13262.26
B118: x
B119: TOTAL GERAL | L119: =L11+L18+L24+L36+L88+L102+L109 -> 6328004.38

Sheet CRON FÍSICO-FINANCEIRO
B2: CRONOGRAMA FISICO-FINANCEIRO | E2: CRONOGRAMA FISICO-FINANCEIRO
B3: Ponte sobre o rio Paraim (Flores de Goiás - GO) | I3: Extensão: 0,045 km
I4: Empresa executora:
I5: Região: GO
B6: Órgão responsável: CODEVASF | I6: sem desoneração
B9: ITEM | C9: DISCRIMINAÇÃO | D9: VALOR DA ETAPA | E9: MESES
E10: 1 | F10: 2 | G10: 3 | H10: 4 | I10: 5
B11: 1. | C11: CUSTOS INDIRETOS | E11: =ROUND((E16+E19+E22+E25)/(SUM($D$14:$D$25)),4) -> 0.5781 | F11: =ROUND((F16+F19+F22+F25)/(SUM($D$14:$D$25)),4) -> 0.0966 | G11: 0.0966 | H11: 0.0966 | I11: 0.1321 | J11: =SUM(E11:I11) -> 1
E12: =IF(E11<>0,"=","") -> = | F12: = | G12: = | H12: = | I12: =
E13: =+ROUND(E11*$D11,4) -> 0 | F13: 0 | G13: 0 | H13: 0 | I13: 0
B14: 1.1 | C14: ADMINISTRAÇÃO LOCAL | D14: =ORÇAMENTO!L12 -> 464222.64 | F14: =1/4 -> 0.25 | G14: =1/4 -> 0.25 | H14: 0.25 | I14: 0.25 | J14: =SUM(E14:I14) -> 1
E15: =IF(E14<>0,"=","") ->  | F15: = | G15: = | H15: = | I15: =
E16: =+ROUND(E14*$D14,4) -> 0 | F16: 116055.66 | G16: 116055.66 | H16: 116055.66 | I16: 116055.66
B17: 1.2 | C17: INSTALAÇÃO DE CANTEIRO DE OBRAS | D17: =ORÇAMENTO!L13 -> 665687.96 | E17: 1 | J17: =SUM(E17:I17) -> 1
E18: =IF(E17<>0,"=","") -> =
E19: =+ROUND(E17*$D17,4) -> 665687.96 | F19: 0 | G19: 0 | H19: 0 | I19: 0
B20: 1.3 | C20: MOBILIZAÇÃO E DESMOBILIZAÇÃO | D20: =ORÇAMENTO!L14 -> 87390.03 | E20: 0.5 | I20: 0.5 | J20: =SUM(E20:I20) -> 1
E21: =IF(E20<>0,"=","") -> = | I21: =
E22: =+ROUND(E20*$D20,4) -> 43695.015 | F22: 0 | G22: 0 | H22: 0 | I22: 43695.015
B23: 1.4 | C23: =ORÇAMENTO!D15 -> SERVIÇOS PRELIMINARES | D23: =ORÇAMENTO!L11-SUM(ORÇAMENTO!L12:L14) -> 15103.65 | E23: =1/5 -> 0.2 | F23: =1/5 -> 0.2 | G23: 0.2 | H23: 0.2 | I23: 0.2 | J23: =SUM(E23:I23) -> 1
E24: =IF(E23<>0,"=","") -> = | F24: = | G24: = | H24: = | I24: =
E25: =+ROUND(E23*$D23,4) -> 3020.73 | F25: 3020.73 | G25: 3020.73 | H25: 3020.73 | I25: 3020.73
B26: 2. | C26: =ORÇAMENTO!$D$18 -> TERRAPLANAGEM | D26: =ORÇAMENTO!$L$18 -> 294740.46 | G26: 0.3 | H26: 0.6 | I26: 0.1 | J26: =SUM(E26:I26) -> 1
E27: =IF(E26<>0,"=","") ->  | G27: = | H27: = | I27: =
E28: =+ROUND(E26*$D26,4) -> 0 | F28: 0 | G28: 88422.138 | H28: 176844.276 | I28: 29474.046
B29: 3. | C29: =ORÇAMENTO!$D$24 -> GABIÃO | D29: =ORÇAMENTO!$L$24 -> 2693651.59 | E29: 0.1 | F29: 0.25 | G29: 0.4 | H29: 0.2 | I29: 0.05 | J29: =SUM(E29:I29) -> 1
E30: =IF(E29<>0,"=","") -> = | F30: = | G30: = | H30: = | I30: =
E31: =+ROUND(E29*$D29,4) -> 269365.159 | F31: 673412.8975 | G31: 1077460.636 | H31: 538730.318 | I31: 134682.5795
B32: 4. | C32: =ORÇAMENTO!$D$36 -> OBRA DE ARTE ESPECIAL | D32: =ORÇAMENTO!$L$36 -> 1827867.99 | E32: 0.2 | F32: 0.3 | G32: 0.3 | H32: 0.15 | I32: 0.05 | J32: =SUM(E32:I32) -> 1
E33: =IF(E32<>0,"=","") -> = | F33: = | G33: = | H33: = | I33: =
E34: =+ROUND(E32*$D32,4) -> 365573.598 | F34: 548360.397 | G34: 548360.397 | H34: 274180.1985 | I34: 91393.3995
B35: 5. | C35: =ORÇAMENTO!$D$88 -> OBRA DE ARTE CORRENTE | D35: =ORÇAMENTO!$L$88 -> 29471.44 | E35: 1 | J35: =SUM(E35:I35) -> 1
E36: =IF(E35<>0,"=","") -> =
E37: =+ROUND(E35*$D35,4) -> 29471.44 | F37: 0 | G37: 0 | H37: 0 | I37: 0
B38: 6. | C38: =ORÇAMENTO!$D$102 -> SINALIZAÇÃO | D38: =ORÇAMENTO!$L$102 -> 3958.82 | I38: 1 | J38: =SUM(E38:I38) -> 1
E39: =IF(E38<>0,"=","") ->  | I39: =
E40: =+ROUND(E38*$D38,4) -> 0 | F40: 0 | G40: 0 | H40: 0 | I40: 3958.82
B41: 7. | C41: =ORÇAMENTO!$D$109 -> OBRAS COMPLEMENTARES | D41: =ORÇAMENTO!$L$109 -> 245909.8 | H41: 0.3 | I41: 0.7 | J41: =SUM(E41:I41) -> 1
E42: =IF(E41<>0,"=","") ->  | H42: = | I42: =
E43: =+ROUND(E41*$D41,4) -> 0 | F43: 0 | G43: 0 | H43: 73772.94 | I43: 172136.86
B44: 8. | J44: =SUM(E44:I44) -> 0
E45: =IF(E44<>0,"=","") -> 
E46: =+ROUND(E44*$D44,4) -> 0 | F46: 0 | G46: 0 | H46: 0 | I46: 0
B47: 9. | J47: =SUM(E47:I47) -> 0
E48: =IF(E47<>0,"=","") -> 
E49: =+ROUND(E47*$D47,4) -> 0 | F49: 0 | G49: 0 | H49: 0 | I49: 0
B50: 10. | J50: =SUM(E50:I50) -> 0
E51: =IF(E50<>0,"=","") -> 
E52: =+ROUND(E50*$D50,4) -> 0 | F52: 0 | G52: 0 | H52: 0 | I52: 0
B53: 11. | J53: =SUM(E53:I53) -> 0
E54: =IF(E53<>0,"=","") -> 
E55: =+ROUND(E53*$D53,4) -> 0 | F55: 0 | G55: 0 | H55: 0 | I55: 0
C56: TOTAIS SIMPLES (%) | E56: =+E58/$D$59 -> 0.1593266239 | F56: 0.1247579031 | G56: 0.2025817868 | H56: 0.1430787875 | I56: 0.07901432276
C57: TOTAIS ACUMULADOS (%) | E57: =+E56 -> 0.1593266239 | F57: =+F56+E57 -> 0.2840845271 | G57: 0.4866663138 | H57: 0.6297451013 | I57: 0.7087594241
C58: TOTAIS SIMPLES (R$) | E58: =E13+E16+E19+E22+E28+E31+E37+E40+E43+E46+E49+E52+E55 -> 1008219.574 | F58: 789468.5575 | G58: 1281938.434 | H58: 905403.194 | I58: 500002.9805
C59: TOTAIS ACUMULADOS (R$) | D59: =SUM(D11:D58) -> 6328004.38 | E59: =+E58 -> 1008219.574 | F59: =+E59+F58 -> 1797688.131 | G59: 3079626.565 | H59: 3985029.759 | I59: 4485032.74
D61: =D59=ORÇAMENTO!L119 -> TRUE

Sheet BDI
B1: CODEVASF
B2: COMPOSIÇÃO DA PARCELA DE BDI (BONIFICAÇÃO E DESPESAS INDIRETAS)
B4: Ofício-Circular nº 5124/2023 (SEI DNIT nº 15729844)
B5: Período de vigência: Desde 27 de setembro de 2023
B7: CONSTRUÇÃO RODOVIÁRIA - OBRA
B8: DESPESAS INDIRETAS | D8: DESONERADO | F8: ONERADO
D9: % sobre PV | E9: % sobre CD | F9: % sobre PV | G9: % sobre CD
B10: Administração Central | C10: Variável - f (CD) | D10: 4.57 | E10: =(D10*$D$28)/$D$27-0.01 -> 5.993679515 | F10: 4.8 | G10: =(F10*$F$28)/$F$27 -> 5.995256065
B11: Despesas Financeiras | C11: 1,04% sobre (PV - Lucro) | D11: =D34*(1-D17/100) -> 0.9400141105 | E11: =(D11*$D$28)/$D$27 -> 1.234911041 | F11: =D34*(1-F17/100) -> 0.9366974778 | G11: =(F11*$F$28)/$F$27 -> 1.169946091
B12: Seguros e Garantias Contratuais | C12: 0,25% do PV | D12: 0.25 | E12: =(D12*$D$28)/$D$27 -> 0.3284288575 | F12: 0.25 | G12: =(F12*$F$28)/$F$27 -> 0.31225292
B13: Riscos | C13: 0,50% do PV | D13: 0.5 | E13: =(D13*$D$28)/$D$27 -> 0.656857715 | F13: 0.5 | G13: =(F13*$F$28)/$F$27 -> 0.6245058401
C14: Sub-total 1 | D14: =SUM(D10:D13) -> 6.260014111 | E14: =SUM(E10:E13) -> 8.213877129 | F14: =SUM(F10:F13) -> 6.486697478 | G14: =SUM(G10:G13) -> 8.101960915
B16: BENEFÍCIOS | D16: % sobre PV | E16: % sobre CD | F16: % sobre PV | G16: % sobre CD
B17: Lucro | C17: Variável - f (CD) | D17: 6.47 | E17: =(D17*$D$28)/$D$27 -> 8.499738833 | F17: 6.8 | G17: =(F17*$F$28)/$F$27 -> 8.493279425
C18: Sub-total 2 | D18: =SUM(D17) -> 6.47 | E18: =SUM(E17) -> 8.499738833 | F18: =SUM(F17) -> 6.8 | G18: =SUM(G17) -> 8.493279425
B20: TRIBUTOS | D20: % sobre PV | E20: % sobre CD | F20: % sobre PV | G20: % sobre CD
B21: PIS | C21: 0,65% do PV | D21: 0.65 | E21: =(D21*$D$28)/$D$27 -> 0.8539150295 | F21: 0.65 | G21: =(F21*$F$28)/$F$27 -> 0.8118575921
B22: COFINS | C22: 3,00% do PV | D22: 3 | E22: =(D22*$D$28)/$D$27 -> 3.94114629 | F22: 3 | G22: =(F22*$F$28)/$F$27 -> 3.74703504
B23: ISSQN | C23: =CONCATENATE(D23,"% do PV") -> 3% do PV | D23: =$D$38*100 -> 3 | E23: =(D23*$D$28)/$D$27 -> 3.94114629 | F23: =D23 -> 3 | G23: =(F23*$F$28)/$F$27 -> 3.74703504
B24: CPRB | C24: 0,00% ou 4,50% do PV | D24: 4.5 | E24: =(D24*$D$28)/$D$27 -> 5.911719435 | G24: =(F24*$F$28)/$F$27 -> 0
C25: Sub-total | D25: =SUM(D21:D24) -> 11.15 | E25: =SUM(E21:E24) -> 14.64792705 | F25: =SUM(F21:F24) -> 6.65 | G25: =SUM(G21:G24) -> 8.305927673
B26: BDI COM IMPOSTOS | D26: =D14+D18+D25 -> 23.88001411 | E26: =ROUND(E14+E18+E25,2)+0.01 -> 31.37 | F26: =F14+F18+F25 -> 19.93669748 | G26: =ROUND(G14+G18+G25,2) -> 24.9
B27: Custo Direto - CD | D27: =100-D26 -> 76.11998589 | F27: =100-F26 -> 80.06330252
D28: 100 | F28: 100
B29: BDI COM IMPOSTOS (%) | C29: Total | D29: =D26 -> 23.88001411 | E29: =E26 -> 31.37 | F29: =F26 -> 19.93669748 | G29: =G26 -> 24.9
B31: PV = Preço de Venda
B32: CD = Custo Direto
B33: SELIC (Setembro/2023) = 12,75% a.a. | D33: 12.75 | E33: % a.a.
B34: CF = ((1+SELIC)1/12 x (1+INFL)1/12 -1) | D34: =((1+$D$33/100)^(1/12)-1)*100 -> 1.005040212
B35: Seguros e Garantias = 2,5% a.a. sobre 5% do PV - Prazo Médio = 2 anos | D35: =((1+$D$33/100)^(1/12)-1) -> 0.01005040212
B37: ISSQN REAL COM A DEDUÇÃO DE MATERIAIS
B38: ISSQN * % MATERIAL ORÇAMENTO | D38: 0.03

Sheet Material Betuminoso (hidden)
C2: MEMÓRIA DE CÁLCULO
E7: ÍNDICE DE PAVIMENTAÇÃO DNIT | F7: 2014-07-01 | G7: ÍNDICE INICIAL | H7: 270.237 | K7: IMPOSTOS | L7: COFINS | M7: 0.0065 | N7: 0.0065
F8: 2023-04-01 | G8: ÍNDICE FINAL | H8: 548.765 | L8: PIS | M8: 0.03 | N8: 0.03 | O8: =1-(M9/1) -> 0.82 | P8: LEGENDA | W8: As empresas tributadas pelo Lucro Presumido pagam 0,65% de PIS e 3% de COFINS
E9: Data ANP | F9: 2023-04-01 | L9: ICMS | M9: 0.18 | N9: 0.18 | O9: =1-(O8/1) -> 0.18 | P9: ENTRADA DE DADOS | W9: As empresas tributadas pelo Lucro Real pagam 1,65% de PIS e 7,60% de COFINS
C11: DATA-BASE | D11: PRODUTOS | E11: LOCALIDADES | H11: CUSTO ANP (R$/Kg) | J11: CUSTO ANP | K11: IMPOSTOS DO PRODUTO | L11: CUSTO DO PRODUTO COM IMPOSTOS | M11: DMT's | N11: DMT's FLUVIAL | O11: CUSTO DO TRANSPORTE RODOVIA PAVIMENTADA | P11: ICMS | Q11: ATUALIZAÇÃO DO CUSTO DE TRANSPORTE | R11: CUSTO DO TRANSPORTE RODOVIA PAVIMENTADA COM IMPOSTOS E ATUALIZAÇÃO MONETÁRIA | S11: TOTAL TRANSPORTE | T11: AQUISIÇÃO DO PRODUTO | U11: TOTAL GERAL ( TRANSP + AQUISIÇÃO) | W11: 1 | X11: 2 | Y11: 3
C12: =F8 -> 2023-04-01 | D12: TIPOLOGIA DO MATERIAL | E12: ESTADO | F12: CIDADE | G12: DESTINO | H12: ESTADO | I12: REGIÃO | J12: R$/t | K12: R$/t | L12: R$/t | M12: KM | N12: KM | O12: R$/t | P12: R$/t | Q12: R$/t | R12: R$/t | S12: R$/t | T12: R$/t | U12: R$/t | W12: TOTAL GERAL ( TRANSP + AQUISIÇÃO) | X12: TOTAL TRANSPORTE | Y12: AQUISIÇÃO DO PRODUTO
B13: =U16 -> 6035.475095 | C13: 1 | D13: ASFALTOS DILUÍDOS CM-30 | E13: Goiás | F13: Goiânia | G13: Cristalina - GO | H13: ='ANP UF'!$D$3338 -> - | I13: ='ANP região'!$E$182 -> 5.135816186 | J13: =IF(AND(H13="-",I13="-"),"",IF(AND(H13<>0,I13="-"),H13*1000,IF(AND(H13="-",I13<>0),I13*1000,IF(AND(H13<>0,I13<>0),H13*1000,"")))) -> 5135.816186 | K13: =ROUND(((J13/(1-$M$7-$M$8-$M$9))-J13),2) -> 1419.15 | L13: =J13+K13 -> 6554.966186 | M13: 150 | O13: =ROUND((26.939+0.253*M13),2) -> 64.89 | P13: =TRUNC(O13*($M$9/(1-$M$9)),2) -> 14.24 | Q13: =TRUNC(IF($H$7="","",(($H$8-$H$7)/$H$7)*(O13+P13)),2) -> 81.55 | R13: =O13+P13+Q13 -> 160.68 | S13: =IF(AND(O13="",P13=""),"",R13) -> 160.68 | T13: =IF(OR(J13="",K13=""),"",J13+K13) -> 6554.966186 | U13: =IF(OR(S13="",T13=""),"",S13+T13) -> 6715.646186 | W13: =U13 -> 6715.646186 | X13: =S13 -> 160.68 | Y13: 6554.966186 | AB13: =IF(OR(E13=$D$44,E13=$D$45,E13=$D$47,E13=$D$53,E13=$D$37,E13=$D$33,E13=$D$29,E13=$D$42,E13=$D$32),"NORDESTE",IF(OR(E13=$D$28,E13=$D$30,E13=$D$31,E13=$D$41,E13=$D$49,E13=$D$50,E13=$D$54),"NORTE",IF(OR(E13=$D$34,E13=$D$36,E13=$D$38,E13=$D$39),"CENTRO-OESTE",IF(OR(E13=$D$52,E13=$D$46,E13=$D$40,E13=$D$35),"SUDESTE",IF(OR(E13=$D$51,E13=$D$43,E13=$D$48),"SUL",""))))) -> CENTRO-OESTE
C14: 1 | E14: Distrito Federal | F14: Brasília | G14: Cristalina - GO | H14: ='ANP UF'!$D$3336 -> - | I14: ='ANP região'!$E$182 -> 5.135816186 | J14: =IF(AND(H14="-",I14=""),"",IF(AND(H14<>0,I14=""),H14*1000,IF(AND(H14="-",I14<>0),I14*1000,IF(AND(H14<>0,I14<>0),H14*1000,"")))) -> 5135.816186 | K14: =ROUND(((J14/(1-$M$7-$M$8-$M$9))-J14),2) -> 1419.15 | L14: =J14+K14 -> 6554.966186 | M14: 269 | O14: =ROUND((26.939+0.253*M14),2) -> 95 | P14: =TRUNC(O14*($M$9/(1-$M$9)),2) -> 20.85 | Q14: =TRUNC(IF($H$7="","",(($H$8-$H$7)/$H$7)*(O14+P14)),2) -> 119.4 | R14: =O14+P14+Q14 -> 235.25 | S14: =IF(AND(O14="",P14=""),"",R14) -> 235.25 | T14: =IF(OR(J14="",K14=""),"",J14+K14) -> 6554.966186 | U14: =IF(OR(S14="",T14=""),"",S14+T14) -> 6790.216186 | W14: =U14 -> 6790.216186 | X14: 235.25 | Y14: 6554.966186 | AB14: =IF(OR(E14=$D$44,E14=$D$45,E14=$D$47,E14=$D$53,E14=$D$37,E14=$D$33,E14=$D$29,E14=$D$42,E14=$D$32),"NORDESTE",IF(OR(E14=$D$28,E14=$D$30,E14=$D$31,E14=$D$41,E14=$D$49,E14=$D$50,E14=$D$54),"NORTE",IF(OR(E14=$D$34,E14=$D$36,E14=$D$38,E14=$D$39),"CENTRO-OESTE",IF(OR(E14=$D$52,E14=$D$46,E14=$D$40,E14=$D$35),"SUDESTE",IF(OR(E14=$D$51,E14=$D$43,E14=$D$48),"SUL",""))))) -> CENTRO-OESTE
C15: 1 | E15: Minas Gerais | F15: Belo Horizonte | G15: Cristalina - GO | H15: ='ANP UF'!$D$3342 -> - | I15: ='ANP região'!$F$182 -> 4.368265095 | J15: =IF(AND(H15="-",I15=""),"",IF(AND(H15<>0,I15=""),H15*1000,IF(AND(H15="-",I15<>0),I15*1000,IF(AND(H15<>0,I15<>0),H15*1000,"")))) -> 4368.265095 | K15: =ROUND(((J15/(1-$M$7-$M$8-$M$9))-J15),2) -> 1207.06 | L15: =J15+K15 -> 5575.325095 | M15: 628 | O15: =ROUND((26.939+0.253*M15),2) -> 185.82 | P15: =TRUNC(O15*($M$9/(1-$M$9)),2) -> 40.78 | Q15: =TRUNC(IF($H$7="","",(($H$8-$H$7)/$H$7)*(O15+P15)),2) -> 233.55 | R15: =O15+P15+Q15 -> 460.15 | S15: =IF(AND(O15="",P15=""),"",R15) -> 460.15 | T15: =IF(OR(J15="",K15=""),"",J15+K15) -> 5575.325095 | U15: =IF(OR(S15="",T15=""),"",S15+T15) -> 6035.475095 | W15: =U15 -> 6035.475095 | X15: 460.15 | Y15: 5575.325095 | AB15: =IF(OR(E15=$D$44,E15=$D$45,E15=$D$47,E15=$D$53,E15=$D$37,E15=$D$33,E15=$D$29,E15=$D$42,E15=$D$32),"NORDESTE",IF(OR(E15=$D$28,E15=$D$30,E15=$D$31,E15=$D$41,E15=$D$49,E15=$D$50,E15=$D$54),"NORTE",IF(OR(E15=$D$34,E15=$D$36,E15=$D$38,E15=$D$39),"CENTRO-OESTE",IF(OR(E15=$D$52,E15=$D$46,E15=$D$40,E15=$D$35),"SUDESTE",IF(OR(E15=$D$51,E15=$D$43,E15=$D$48),"SUL",""))))) -> SUDESTE
U16: =MIN(U13:U15) -> 6035.475095
B18: =U21 -> 3331.310779 | C18: 2 | D18: EMULSÕES ASFÁLTICAS RR-1C | E18: Goiás | F18: Goiânia | G18: Cristalina - GO | H18: ='ANP UF'!D88010 -> 2.488027499 | I18: ='ANP região'!$E$4275 -> 3.058135372 | J18: =IF(AND(H18="-",I18="-"),"",IF(AND(H18<>0,I18="-"),H18*1000,IF(AND(H18="-",I18<>0),I18*1000,IF(AND(H18<>0,I18<>0),H18*1000,"")))) -> 2488.027499 | K18: =ROUND(((J18/(1-$M$7-$M$8-$M$9))-J18),2) -> 687.5 | L18: =J18+K18 -> 3175.527499 | M18: 150 | O18: =ROUND((26.939+0.253*M18),2) -> 64.89 | P18: =TRUNC(O18*($M$9/(1-$M$9)),2) -> 14.24 | Q18: =TRUNC(IF($H$7="","",(($H$8-$H$7)/$H$7)*(O18+P18)),2) -> 81.55 | R18: =O18+P18+Q18 -> 160.68 | S18: =IF(AND(O18="",P18=""),"",R18) -> 160.68 | T18: =IF(OR(J18="",K18=""),"",J18+K18) -> 3175.527499 | U18: =IF(OR(S18="",T18=""),"",S18+T18) -> 3336.207499 | W18: =U18 -> 3336.207499 | X18: =S18 -> 160.68 | Y18: 3175.527499 | AB18: =IF(OR(E18=$D$44,E18=$D$45,E18=$D$47,E18=$D$53,E18=$D$37,E18=$D$33,E18=$D$29,E18=$D$42,E18=$D$32),"NORDESTE",IF(OR(E18=$D$28,E18=$D$30,E18=$D$31,E18=$D$41,E18=$D$49,E18=$D$50,E18=$D$54),"NORTE",IF(OR(E18=$D$34,E18=$D$36,E18=$D$38,E18=$D$39),"CENTRO-OESTE",IF(OR(E18=$D$52,E18=$D$46,E18=$D$40,E18=$D$35),"SUDESTE",IF(OR(E18=$D$51,E18=$D$43,E18=$D$48),"SUL",""))))) -> CENTRO-OESTE
C19: 2 | E19: Distrito Federal | F19: Brasília | G19: Cristalina - GO | H19: ='ANP UF'!D88008 -> - | I19: ='ANP região'!$E$4275 -> 3.058135372 | J19: =IF(AND(H19="-",I19=""),"",IF(AND(H19<>0,I19=""),H19*1000,IF(AND(H19="-",I19<>0),I19*1000,IF(AND(H19<>0,I19<>0),H19*1000,"")))) -> 3058.135372 | K19: =ROUND(((J19/(1-$M$7-$M$8-$M$9))-J19),2) -> 845.04 | L19: =J19+K19 -> 3903.175372 | M19: 269 | O19: =ROUND((26.939+0.253*M19),2) -> 95 | P19: =TRUNC(O19*($M$9/(1-$M$9)),2) -> 20.85 | Q19: =TRUNC(IF($H$7="","",(($H$8-$H$7)/$H$7)*(O19+P19)),2) -> 119.4 | R19: =O19+P19+Q19 -> 235.25 | S19: =IF(AND(O19="",P19=""),"",R19) -> 235.25 | T19: =IF(OR(J19="",K19=""),"",J19+K19) -> 3903.175372 | U19: =IF(OR(S19="",T19=""),"",S19+T19) -> 4138.425372 | W19: =U19 -> 4138.425372 | X19: 235.25 | Y19: 3903.175372 | AB19: =IF(OR(E19=$D$44,E19=$D$45,E19=$D$47,E19=$D$53,E19=$D$37,E19=$D$33,E19=$D$29,E19=$D$42,E19=$D$32),"NORDESTE",IF(OR(E19=$D$28,E19=$D$30,E19=$D$31,E19=$D$41,E19=$D$49,E19=$D$50,E19=$D$54),"NORTE",IF(OR(E19=$D$34,E19=$D$36,E19=$D$38,E19=$D$39),"CENTRO-OESTE",IF(OR(E19=$D$52,E19=$D$46,E19=$D$40,E19=$D$35),"SUDESTE",IF(OR(E19=$D$51,E19=$D$43,E19=$D$48),"SUL",""))))) -> CENTRO-OESTE
C20: 2 | E20: Minas Gerais | F20: Belo Horizonte | G20: Cristalina - GO | H20: ='ANP UF'!D88014 -> 2.249550779 | I20: ='ANP região'!$F$4275 -> 2.445995573 | J20: =IF(AND(H20="-",I20=""),"",IF(AND(H20<>0,I20=""),H20*1000,IF(AND(H20="-",I20<>0),I20*1000,IF(AND(H20<>0,I20<>0),H20*1000,"")))) -> 2249.550779 | K20: =ROUND(((J20/(1-$M$7-$M$8-$M$9))-J20),2) -> 621.61 | L20: =J20+K20 -> 2871.160779 | M20: 628 | O20: =ROUND((26.939+0.253*M20),2) -> 185.82 | P20: =TRUNC(O20*($M$9/(1-$M$9)),2) -> 40.78 | Q20: =TRUNC(IF($H$7="","",(($H$8-$H$7)/$H$7)*(O20+P20)),2) -> 233.55 | R20: =O20+P20+Q20 -> 460.15 | S20: =IF(AND(O20="",P20=""),"",R20) -> 460.15 | T20: =IF(OR(J20="",K20=""),"",J20+K20) -> 2871.160779 | U20: =IF(OR(S20="",T20=""),"",S20+T20) -> 3331.310779 | W20: =U20 -> 3331.310779 | X20: 460.15 | Y20: 2871.160779 | AB20: =IF(OR(E20=$D$44,E20=$D$45,E20=$D$47,E20=$D$53,E20=$D$37,E20=$D$33,E20=$D$29,E20=$D$42,E20=$D$32),"NORDESTE",IF(OR(E20=$D$28,E20=$D$30,E20=$D$31,E20=$D$41,E20=$D$49,E20=$D$50,E20=$D$54),"NORTE",IF(OR(E20=$D$34,E20=$D$36,E20=$D$38,E20=$D$39),"CENTRO-OESTE",IF(OR(E20=$D$52,E20=$D$46,E20=$D$40,E20=$D$35),"SUDESTE",IF(OR(E20=$D$51,E20=$D$43,E20=$D$48),"SUL",""))))) -> SUDESTE
U21: =MIN(U18:U20) -> 3331.310779
B23: =U26 -> 4454.509931 | C23: 3 | D23: CIMENTOS ASFÁLTICOS CAP-50-70 | E23: Goiás | F23: Goiânia | G23: Cristalina - GO | H23: ='ANP UF'!D42218 -> 3.62961396 | I23: ='ANP região'!$E$2122 -> 3.58629475 | J23: =IF(AND(H23="-",I23="-"),"",IF(AND(H23<>0,I23="-"),H23*1000,IF(AND(H23="-",I23<>0),I23*1000,IF(AND(H23<>0,I23<>0),H23*1000,"")))) -> 3629.61396 | K23: =ROUND(((J23/(1-$M$7-$M$8-$M$9))-J23),2) -> 1002.95 | L23: =J23+K23 -> 4632.56396 | M23: 150 | O23: =ROUND((26.939+0.253*M23),2) -> 64.89 | P23: =TRUNC(O23*($M$9/(1-$M$9)),2) -> 14.24 | Q23: =TRUNC(IF($H$7="","",(($H$8-$H$7)/$H$7)*(O23+P23)),2) -> 81.55 | R23: =O23+P23+Q23 -> 160.68 | S23: =IF(AND(O23="",P23=""),"",R23) -> 160.68 | T23: =IF(OR(J23="",K23=""),"",J23+K23) -> 4632.56396 | U23: =IF(OR(S23="",T23=""),"",S23+T23) -> 4793.24396 | W23: =U23 -> 4793.24396 | X23: =S23 -> 160.68 | Y23: 4632.56396 | AB23: =IF(OR(E23=$D$44,E23=$D$45,E23=$D$47,E23=$D$53,E23=$D$37,E23=$D$33,E23=$D$29,E23=$D$42,E23=$D$32),"NORDESTE",IF(OR(E23=$D$28,E23=$D$30,E23=$D$31,E23=$D$41,E23=$D$49,E23=$D$50,E23=$D$54),"NORTE",IF(OR(E23=$D$34,E23=$D$36,E23=$D$38,E23=$D$39),"CENTRO-OESTE",IF(OR(E23=$D$52,E23=$D$46,E23=$D$40,E23=$D$35),"SUDESTE",IF(OR(E23=$D$51,E23=$D$43,E23=$D$48),"SUL",""))))) -> CENTRO-OESTE
C24: 3 | E24: Distrito Federal | F24: Brasília | G24: Cristalina - GO | H24: ='ANP UF'!D42216 -> - | I24: ='ANP região'!$E$2122 -> 3.58629475 | J24: =IF(AND(H24="-",I24=""),"",IF(AND(H24<>0,I24=""),H24*1000,IF(AND(H24="-",I24<>0),I24*1000,IF(AND(H24<>0,I24<>0),H24*1000,"")))) -> 3586.29475 | K24: =ROUND(((J24/(1-$M$7-$M$8-$M$9))-J24),2) -> 990.98 | L24: =J24+K24 -> 4577.27475 | M24: 269 | O24: =ROUND((26.939+0.253*M24),2) -> 95 | P24: =TRUNC(O24*($M$9/(1-$M$9)),2) -> 20.85 | Q24: =TRUNC(IF($H$7="","",(($H$8-$H$7)/$H$7)*(O24+P24)),2) -> 119.4 | R24: =O24+P24+Q24 -> 235.25 | S24: =IF(AND(O24="",P24=""),"",R24) -> 235.25 | T24: =IF(OR(J24="",K24=""),"",J24+K24) -> 4577.27475 | U24: =IF(OR(S24="",T24=""),"",S24+T24) -> 4812.52475 | W24: =U24 -> 4812.52475 | X24: 235.25 | Y24: 4577.27475 | AB24: =IF(OR(E24=$D$44,E24=$D$45,E24=$D$47,E24=$D$53,E24=$D$37,E24=$D$33,E24=$D$29,E24=$D$42,E24=$D$32),"NORDESTE",IF(OR(E24=$D$28,E24=$D$30,E24=$D$31,E24=$D$41,E24=$D$49,E24=$D$50,E24=$D$54),"NORTE",IF(OR(E24=$D$34,E24=$D$36,E24=$D$38,E24=$D$39),"CENTRO-OESTE",IF(OR(E24=$D$52,E24=$D$46,E24=$D$40,E24=$D$35),"SUDESTE",IF(OR(E24=$D$51,E24=$D$43,E24=$D$48),"SUL",""))))) -> CENTRO-OESTE
C25: 3 | E25: Minas Gerais | F25: Belo Horizonte | G25: Cristalina - GO | H25: ='ANP UF'!D42222 -> 3.129579931 | I25: ='ANP região'!$F$2122 -> 3.123414779 | J25: =IF(AND(H25="-",I25=""),"",IF(AND(H25<>0,I25=""),H25*1000,IF(AND(H25="-",I25<>0),I25*1000,IF(AND(H25<>0,I25<>0),H25*1000,"")))) -> 3129.579931 | K25: =ROUND(((J25/(1-$M$7-$M$8-$M$9))-J25),2) -> 864.78 | L25: =J25+K25 -> 3994.359931 | M25: 628 | O25: =ROUND((26.939+0.253*M25),2) -> 185.82 | P25: =TRUNC(O25*($M$9/(1-$M$9)),2) -> 40.78 | Q25: =TRUNC(IF($H$7="","",(($H$8-$H$7)/$H$7)*(O25+P25)),2) -> 233.55 | R25: =O25+P25+Q25 -> 460.15 | S25: =IF(AND(O25="",P25=""),"",R25) -> 460.15 | T25: =IF(OR(J25="",K25=""),"",J25+K25) -> 3994.359931 | U25: =IF(OR(S25="",T25=""),"",S25+T25) -> 4454.509931 | W25: =U25 -> 4454.509931 | X25: 460.15 | Y25: 3994.359931 | AB25: =IF(OR(E25=$D$44,E25=$D$45,E25=$D$47,E25=$D$53,E25=$D$37,E25=$D$33,E25=$D$29,E25=$D$42,E25=$D$32),"NORDESTE",IF(OR(E25=$D$28,E25=$D$30,E25=$D$31,E25=$D$41,E25=$D$49,E25=$D$50,E25=$D$54),"NORTE",IF(OR(E25=$D$34,E25=$D$36,E25=$D$38,E25=$D$39),"CENTRO-OESTE",IF(OR(E25=$D$52,E25=$D$46,E25=$D$40,E25=$D$35),"SUDESTE",IF(OR(E25=$D$51,E25=$D$43,E25=$D$48),"SUL",""))))) -> SUDESTE
U26: =MIN(U23:U25) -> 4454.509931
D28: Acre
D29: Alagoas
D30: Amapá
D31: Amazonas
D32: Bahia
D33: Ceará
D34: Distrito Federal
D35: Espírito Santo
D36: Goiás
D37: Maranhão
D38: Mato Grosso
D39: Mato Grosso do Sul
D40: Minas Gerais
D41: Pará
D42: Paraíba
D43: Paraná
D44: Pernambuco
D45: Piauí
D46: Rio de Janeiro
D47: Rio Grande do Norte
D48: Rio Grande do Sul
D49: Rondônia
D50: Roraima
D51: Santa Catarina
D52: São Paulo
D53: Sergipe
D54: Tocantins
D58: ASFALTOS DILUÍDOS CM-30
D59: ASFALTOS DILUÍDOS CM-70
D60: ASFALTOS DILUÍDOS CR-250
D61: ASFALTOS DILUÍDOS CR-70
D62: CAP MODIFICADO POR BORRACHA DE PNEU AB22
D63: CAP MODIFICADO POR BORRACHA DE PNEU AB8
D64: CAP MODIFICADO POR POLÍMERO 55-75-E
D65: CAP MODIFICADO POR POLÍMERO 60-85-E
D66: CAP MODIFICADO POR POLÍMERO 65-90-E
D67: CIMENTOS ASFÁLTICOS CAP-150-200
D68: CIMENTOS ASFÁLTICOS CAP-30-45
D69: CIMENTOS ASFÁLTICOS CAP-50-70
D70: CIMENTOS ASFÁLTICOS CAP-85-100
D71: EMULSÃO ASFÁLTICA CATIÔNICA DE RUPTURA CONTROLADA PARA SERVIÇO DE LAMA ASFÁLTICA
D72: EMULSÃO ASFÁLTICA DE RUPTURA LENTA CATIÔNICA PARA SERVIÇO DE LAMA ASFÁLTICA
D73: EMULSÃO ASFÁLTICA DE RUPTURA LENTA DE CARGA NEUTRA PARA SERVIÇO DE LAMA ASFÁLTICA
D74: EMULSÃO ASFÁLTICA PARA SERVIÇO DE IMPRIMAÇÃO
D75: EMULSÕES ASF. MOD. POR POLÍMEROS RC1C-E
D76: EMULSÕES ASF. MOD. POR POLÍMEROS RL1C-E
D77: EMULSÕES ASF. MOD. POR POLÍMEROS RM1C-E
D78: EMULSÕES ASF. MOD. POR POLÍMEROS RR1C-E
D79: EMULSÕES ASF. MOD. POR POLÍMEROS RR2C-E
D80: EMULSÕES ASFÁLTICAS RL-1C
D81: EMULSÕES ASFÁLTICAS RM-1C
D82: EMULSÕES ASFÁLTICAS RM-2C
D83: EMULSÕES ASFÁLTICAS RR-1C
D84: EMULSÕES ASFÁLTICAS RR-2C

Sheet ANP região (hidden)
A1: Agência Nacional do Petróleo, Gás Natural e Biocombustíveis
A2: Superintendência de Defesa da Concorrência | K2: ICMS | L2: 0.17
K3: BDI reduzido | L3: 0.1179
A6: PREÇO MÉDIO MENSAL PONDERADO PRATICADO PELOS DISTRIBUIDORES DE PRODUTOS ASFÁLTICOS (R$/KG)
A8: Produto | B8: Mês | C8: Norte | D8: Nordeste | E8: Centro-Oeste | F8: Sudeste | G8: Sul | H8: Brasil | I8: Preço + ICMS | J8: Preço + BDI
A9: ASFALTOS DILUÍDOS CM-30 | B9: 2008-11-01 | C9: 1.775468292 | D9: 1.55087853 | E9: 2.022143291 | F9: 1.55449367 | G9: 1.584532899 | H9: 1.64286837
A10: ASFALTOS DILUÍDOS CM-30 | B10: 2008-12-01 | C10: 1.806837667 | D10: 1.509118192 | E10: 2.013020124 | F10: 1.610902223 | G10: 1.607187591 | H10: 1.637581471
A11: ASFALTOS DILUÍDOS CM-30 | B11: 2009-01-01 | C11: 1.497052858 | D11: 1.504296346 | E11: 1.963097671 | F11: 1.524672247 | G11: 1.585137209 | H11: 1.564945876
A12: ASFALTOS DILUÍDOS CM-30 | B12: 2009-02-01 | C12: 1.42787112 | D12: 1.497693283 | E12: 1.981065098 | F12: 1.583490231 | G12: 1.595924062 | H12: 1.565451036
A13: ASFALTOS DILUÍDOS CM-30 | B13: 2009-03-01 | C13: 1.404941405 | D13: 1.497647987 | E13: 1.893430263 | F13: 1.52754782 | G13: 1.588720029 | H13: 1.532713147
A14: ASFALTOS DILUÍDOS CM-30 | B14: 2009-04-01 | C14: 1.410510748 | D14: 1.484826261 | E14: 1.909226429 | F14: 1.464149371 | G14: 1.553831928 | H14: 1.516717648
A15: ASFALTOS DILUÍDOS CM-30 | B15: 2009-05-01 | C15: 1.480355678 | D15: 1.466898928 | E15: 1.891590435 | F15: 1.435443718 | G15: 1.54161118 | H15: 1.537574371
A16: ASFALTOS DILUÍDOS CM-30 | B16: 2009-06-01 | C16: 1.580751039 | D16: 1.444888837 | E16: 1.842074119 | F16: 1.424264315 | G16: 1.501526696 | H16: 1.541315575
A17: ASFALTOS DILUÍDOS CM-30 | B17: 2009-07-01 | C17: 1.905432476 | D17: 1.482618211 | E17: 1.949046345 | F17: 1.584435299 | G17: 1.610310436 | H17: 1.651032523
A18: ASFALTOS DILUÍDOS CM-30 | B18: 2009-08-01 | C18: 1.716995184 | D18: 1.423854915 | E18: 1.712385478 | F18: 1.418000805 | G18: 1.520643497 | H18: 1.504911469
A19: ASFALTOS DILUÍDOS CM-30 | B19: 2009-09-01 | C19: 1.64329494 | D19: 1.445317761 | E19: 1.731518803 | F19: 1.419374251 | G19: 1.500735895 | H19: 1.50552312
A20: ASFALTOS DILUÍDOS CM-30 | B20: 2009-10-01 | C20: 1.588031924 | D20: 1.458932649 | E20: 1.762015056 | F20: 1.429024419 | G20: 1.513753831 | H20: 1.511681904
A21: ASFALTOS DILUÍDOS CM-30 | B21: 2009-11-01 | C21: 1.639348604 | D21: 1.449059777 | E21: 1.772650817 | F21: 1.434122677 | G21: 1.526043188 | H21: 1.499657392
A22: ASFALTOS DILUÍDOS CM-30 | B22: 2009-12-01 | C22: 1.664266853 | D22: 1.441966636 | E22: 1.890574802 | F22: 1.429077727 | G22: 1.520539334 | H22: 1.508864598
A23: ASFALTOS DILUÍDOS CM-30 | B23: 2010-01-01 | C23: 1.842506144 | D23: 1.454977129 | E23: 1.865022447 | F23: 1.414817608 | G23: 1.474450765 | H23: 1.497735227
A24: ASFALTOS DILUÍDOS CM-30 | B24: 2010-02-01 | C24: 1.709886915 | D24: 1.442956487 | E24: 1.919844741 | F24: 1.433146251 | G24: 1.500882448 | H24: 1.496542251
A25: ASFALTOS DILUÍDOS CM-30 | B25: 2010-03-01 | C25: 1.535743416 | D25: 1.448880499 | E25: 1.935062728 | F25: 1.435026116 | G25: 1.480618635 | H25: 1.486789802
A26: ASFALTOS DILUÍDOS CM-30 | B26: 2010-04-01 | C26: 1.710046479 | D26: 1.440300254 | E26: 1.911935961 | F26: 1.421102153 | G26: 1.481270937 | H26: 1.511086431
A27: ASFALTOS DILUÍDOS CM-30 | B27: 2010-05-01 | C27: 1.755610465 | D27: 1.435277221 | E27: 1.873293889 | F27: 1.406944432 | G27: 1.48177605 | H27: 1.537170565
A28: ASFALTOS DILUÍDOS CM-30 | B28: 2010-06-01 | C28: 1.602224314 | D28: 1.396004336 | E28: 1.731734721 | F28: 1.399996227 | G28: 1.49193962 | H28: 1.498073418
A29: ASFALTOS DILUÍDOS CM-30 | B29: 2010-07-01 | C29: 1.559901627 | D29: 1.381016708 | E29: 1.732688214 | F29: 1.402904856 | G29: 1.473854427 | H29: 1.490075269
A30: ASFALTOS DILUÍDOS CM-30 | B30: 2010-08-01 | C30: 1.526639389 | D30: 1.38817836 | E30: 1.738946087 | F30: 1.398751236 | G30: 1.455749849 | H30: 1.495828516
A31: ASFALTOS DILUÍDOS CM-30 | B31: 2010-09-01 | C31: 1.565378829 | D31: 1.408204664 | E31: 1.757027378 | F31: 1.411642875 | G31: 1.487257745 | H31: 1.512257128
A32: ASFALTOS DILUÍDOS CM-30 | B32: 2010-10-01 | C32: 1.481711294 | D32: 1.404357715 | E32: 1.751159947 | F32: 1.403489437 | G32: 1.469340847 | H32: 1.49988826
A33: ASFALTOS DILUÍDOS CM-30 | B33: 2010-11-01 | C33: 1.519267672 | D33: 1.410130904 | E33: 1.779405625 | F33: 1.421283822 | G33: 1.458559112 | H33: 1.481658635
A34: ASFALTOS DILUÍDOS CM-30 | B34: 2010-12-01 | C34: 1.559287556 | D34: 1.40982051 | E34: 1.825185618 | F34: 1.417673572 | G34: 1.473243884 | H34: 1.469113031
A35: ASFALTOS DILUÍDOS CM-30 | B35: 2011-01-01 | C35: 1.525923305 | D35: 1.445794092 | E35: 1.774600924 | F35: 1.403274235 | G35: 1.466002814 | H35: 1.457256066
A36: ASFALTOS DILUÍDOS CM-30 | B36: 2011-02-01 | C36: 1.552825112 | D36: 1.392094259 | E36: 1.763836123 | F36: 1.385194937 | G36: 1.44955884 | H36: 1.426250478
A37: ASFALTOS DILUÍDOS CM-30 | B37: 2011-03-01 | C37: 1.469219693 | D37: 1.369442916 | E37: 1.696017922 | F37: 1.353812804 | G37: 1.435170694 | H37: 1.400130249
A38: ASFALTOS DILUÍDOS CM-30 | B38: 2011-04-01 | C38: 1.470570262 | D38: 1.373220492 | E38: 1.650829394 | F38: 1.345928103 | G38: 1.42199894 | H38: 1.400493522
A39: ASFALTOS DILUÍDOS CM-30 | B39: 2011-05-01 | C39: 1.428528955 | D39: 1.322646267 | E39: 1.700380913 | F39: 1.345068163 | G39: 1.439361431 | H39: 1.428058019
A40: ASFALTOS DILUÍDOS CM-30 | B40: 2011-06-01 | C40: 1.407622163 | D40: 1.305708657 | E40: 1.741843669 | F40: 1.354620495 | G40: 1.399501693 | H40: 1.44029982
A41: ASFALTOS DILUÍDOS CM-30 | B41: 2011-07-01 | C41: 1.259234065 | D41: 1.312033305 | E41: 1.737489696 | F41: 1.33656388 | G41: 1.422474887 | H41: 1.420839252
A42: ASFALTOS DILUÍDOS CM-30 | B42: 2011-08-01 | C42: 1.470680061 | D42: 1.299778765 | E42: 1.727443485 | F42: 1.341477821 | G42: 1.353018352 | H42: 1.425675534
A43: ASFALTOS DILUÍDOS CM-30 | B43: 2011-09-01 | C43: 1.56132872 | D43: 1.321196084 | E43: 1.729821548 | F43: 1.357451483 | G43: 1.395684798 | H43: 1.455202413
A44: ASFALTOS DILUÍDOS CM-30 | B44: 2011-10-01 | C44: 1.520569722 | D44: 1.326218736 | E44: 1.71738046 | F44: 1.332691392 | G44: 1.3577774 | H44: 1.442295871
A45: ASFALTOS DILUÍDOS CM-30 | B45: 2011-11-01 | C45: 1.465886334 | D45: 1.337041154 | E45: 1.741004886 | F45: 1.345486103 | G45: 1.447580565 | H45: 1.445354137
A46: ASFALTOS DILUÍDOS CM-30 | B46: 2011-12-01 | C46: 1.470883899 | D46: 1.335587636 | E46: 1.778724141 | F46: 1.408293068 | G46: 1.428112306 | H46: 1.422418604
A47: ASFALTOS DILUÍDOS CM-30 | B47: 2012-01-01 | C47: 1.384955015 | D47: 1.350130156 | E47: 1.780783883 | F47: 1.421354107 | G47: 1.430352474 | H47: 1.394658167
A48: ASFALTOS DILUÍDOS CM-30 | B48: 2012-02-01 | C48: 1.332181678 | D48: 1.368143891 | E48: 1.741020394 | F48: 1.400200985 | G48: 1.425400986 | H48: 1.410605707
A49: ASFALTOS DILUÍDOS CM-30 | B49: 2012-03-01 | C49: 1.411621867 | D49: 1.349122214 | E49: 1.620096006 | F49: 1.393295764 | G49: 1.406130569 | H49: 1.409768786
A50: ASFALTOS DILUÍDOS CM-30 | B50: 2012-04-01 | C50: 1.549007912 | D50: 1.383976456 | E50: 1.640712752 | F50: 1.404716397 | G50: 1.440617793 | H50: 1.45608482
A51: ASFALTOS DILUÍDOS CM-30 | B51: 2012-05-01 | C51: 1.596178941 | D51: 1.386362272 | E51: 1.712061183 | F51: 1.39923955 | G51: 1.448350887 | H51: 1.498461969
A52: ASFALTOS DILUÍDOS CM-30 | B52: 2012-06-01 | C52: 1.701432576 | D52: 1.388053518 | E52: 1.740352007 | F52: 1.422118749 | G52: 1.449196072 | H52: 1.527722717
A53: ASFALTOS DILUÍDOS CM-30 | B53: 2012-07-01 | C53: 1.652026742 | D53: 1.39436857 | E53: 1.718644846 | F53: 1.439670261 | G53: 1.46187567 | H53: 1.523069159
A54: ASFALTOS DILUÍDOS CM-30 | B54: 2012-08-01 | C54: 1.689998835 | D54: 1.40333785 | E54: 1.741895041 | F54: 1.421723369 | G54: 1.445685799 | H54: 1.536533078
A55: ASFALTOS DILUÍDOS CM-30 | B55: 2012-09-01 | C55: 1.690177972 | D55: 1.421500003 | E55: 1.780920724 | F55: 1.445180432 | G55: 1.483645866 | H55: 1.549410653
A56: ASFALTOS DILUÍDOS CM-30 | B56: 2012-10-01 | C56: 1.574840342 | D56: 1.417066109 | E56: 1.794832036 | F56: 1.451304526 | G56: 1.482037109 | H56: 1.550631802
A57: ASFALTOS DILUÍDOS CM-30 | B57: 2012-11-01 | C57: 1.655163526 | D57: 1.455878748 | E57: 1.840129766 | F57: 1.461204615 | G57: 1.483499722 | H57: 1.552500776
A58: ASFALTOS DILUÍDOS CM-30 | B58: 2012-12-01 | C58: 1.714876125 | D58: 1.435854741 | E58: 1.804066573 | F58: 1.45222765 | G58: 1.509417648 | H58: 1.523411999
A59: ASFALTOS DILUÍDOS CM-30 | B59: 2013-01-01 | C59: 1.495776335 | D59: 1.449494588 | E59: 1.854050525 | F59: 1.44638752 | G59: 1.563753675 | H59: 1.502137259
A60: ASFALTOS DILUÍDOS CM-30 | B60: 2013-02-01 | C60: 1.635067666 | D60: 1.420609638 | E60: 1.731071498 | F60: 1.442746356 | G60: 1.461828405 | H60: 1.4739561
A61: ASFALTOS DILUÍDOS CM-30 | B61: 2013-03-01 | C61: 1.646229098 | D61: 1.413299983 | E61: 1.83828087 | F61: 1.450015152 | G61: 1.525760413 | H61: 1.506542904
A62: ASFALTOS DILUÍDOS CM-30 | B62: 2013-04-01 | C62: 1.581864474 | D62: 1.399189564 | E62: 1.793825113 | F62: 1.458704755 | G62: 1.551913702 | H62: 1.523623636
A63: ASFALTOS DILUÍDOS CM-30 | B63: 2013-05-01 | C63: 1.815646773 | D63: 1.390143517 | E63: 1.812783313 | F63: 1.44951052 | G63: 1.504233457 | H63: 1.549918592
A64: ASFALTOS DILUÍDOS CM-30 | B64: 2013-06-01 | C64: 1.631101583 | D64: 1.383186536 | E64: 1.816642105 | F64: 1.474232641 | G64: 1.503043689 | H64: 1.581049429
A65: ASFALTOS DILUÍDOS CM-30 | B65: 2013-07-01 | C65: 1.86596563 | D65: 1.422051117 | E65: 1.793072753 | F65: 1.498018808 | G65: 1.533391901 | H65: 1.59880513
A66: ASFALTOS DILUÍDOS CM-30 | B66: 2013-08-01 | C66: 1.700325546 | D66: 1.435094415 | E66: 1.821452614 | F66: 1.511722868 | G66: 1.530793596 | H66: 1.606176585
A67: ASFALTOS DILUÍDOS CM-30 | B67: 2013-09-01 | C67: 1.562873733 | D67: 1.472197748 | E67: 1.879842712 | F67: 1.542652867 | G67: 1.490667543 | H67: 1.627945893
A68: ASFALTOS DILUÍDOS CM-30 | B68: 2013-10-01 | C68: 1.648504013 | D68: 1.472152345 | E68: 1.825494997 | F68: 1.501177682 | G68: 1.48378912 | H68: 1.597538775
A69: ASFALTOS DILUÍDOS CM-30 | B69: 2013-11-01 | C69: 1.619179062 | D69: 1.486413317 | E69: 1.844012679 | F69: 1.496326809 | G69: 1.506096878 | H69: 1.581665844
A70: ASFALTOS DILUÍDOS CM-30 | B70: 2013-12-01 | C70: 1.633358293 | D70: 1.494818097 | E70: 1.897197176 | F70: 1.502864538 | G70: 1.517074296 | H70: 1.572475244
A71: ASFALTOS DILUÍDOS CM-30 | B71: 2014-01-01 | C71: 1.688311265 | D71: 1.494181305 | E71: 1.798355903 | F71: 1.484202293 | G71: 1.533353813 | H71: 1.542909737
A72: ASFALTOS DILUÍDOS CM-30 | B72: 2014-02-01 | C72: 1.598304434 | D72: 1.479706587 | E72: 1.814390215 | F72: 1.514829392 | G72: 1.522800588 | H72: 1.528970287
A73: ASFALTOS DILUÍDOS CM-30 | B73: 2014-03-01 | C73: 1.648287687 | D73: 1.472852501 | E73: 1.76657319 | F73: 1.513020673 | G73: 1.506185248 | H73: 1.530181178
A74: ASFALTOS DILUÍDOS CM-30 | B74: 2014-04-01 | C74: 1.534459987 | D74: 1.493898767 | E74: 1.757271278 | F74: 1.533021309 | G74: 1.524275274 | H74: 1.550566305
A75: ASFALTOS DILUÍDOS CM-30 | B75: 2014-05-01 | C75: 1.58658327 | D75: 1.490834685 | E75: 1.804339251 | F75: 1.501138131 | G75: 1.567043824 | H75: 1.586452272
A76: ASFALTOS DILUÍDOS CM-30 | B76: 2014-06-01 | C76: 1.658277164 | D76: 1.505801121 | E76: 1.839593445 | F76: 1.5068632 | G76: 1.523776953 | H76: 1.636070702
A77: ASFALTOS DILUÍDOS CM-30 | B77: 2014-07-01 | C77: 1.890299542 | D77: 1.500730514 | E77: 1.708277865 | F77: 1.487293964 | G77: 1.505956069 | H77: 1.587065158
A78: ASFALTOS DILUÍDOS CM-30 | B78: 2014-08-01 | C78: 1.632741832 | D78: 1.501945324 | E78: 1.671203189 | F78: 1.482359341 | G78: 1.506327366 | H78: 1.557910377
A79: ASFALTOS DILUÍDOS CM-30 | B79: 2014-09-01 | C79: 1.66956717 | D79: 1.546830427 | E79: 1.864797016 | F79: 1.496764585 | G79: 1.570533242 | H79: 1.639281057
A80: ASFALTOS DILUÍDOS CM-30 | B80: 2014-10-01 | C80: 1.742876916 | D80: 1.508978569 | E80: 1.746650466 | F80: 1.470773645 | G80: 1.454273462 | H80: 1.57912022
A81: ASFALTOS DILUÍDOS CM-30 | B81: 2014-11-01 | C81: 1.864723419 | D81: 1.57943059 | E81: 1.749156218 | F81: 1.465084479 | G81: 1.529147988 | H81: 1.601359821
A82: ASFALTOS DILUÍDOS CM-30 | B82: 2014-12-01 | C82: 1.812671914 | D82: 1.704844348 | E82: 1.963310066 | F82: 1.623676702 | G82: 1.649644659 | H82: 1.718826981
A83: ASFALTOS DILUÍDOS CM-30 | B83: 2015-01-01 | C83: 2.154807062 | D83: 2.023760447 | E83: 2.318863736 | F83: 1.866588967 | G83: 1.898380434 | H83: 2.007792032
A84: ASFALTOS DILUÍDOS CM-30 | B84: 2015-02-01 | C84: 2.260238625 | D84: 2.005673765 | E84: 2.393875762 | F84: 1.854519766 | G84: 1.927395107 | H84: 2.007653781
A85: ASFALTOS DILUÍDOS CM-30 | B85: 2015-03-01 | C85: 2.124176462 | D85: 1.968822849 | E85: 2.279643254 | F85: 1.887760911 | G85: 1.930217145 | H85: 1.984816916
A86: ASFALTOS DILUÍDOS CM-30 | B86: 2015-04-01 | C86: 2.030049505 | D86: 2.001506448 | E86: 2.379118903 | F86: 1.85245167 | G86: 1.949025254 | H86: 1.98064321
A87: ASFALTOS DILUÍDOS CM-30 | B87: 2015-05-01 | C87: 2.507271651 | D87: 1.946869908 | E87: 2.254758192 | F87: 1.807470001 | G87: 2.016929536 | H87: 2.005474234
A88: ASFALTOS DILUÍDOS CM-30 | B88: 2015-06-01 | C88: 2.248320042 | D88: 1.944259736 | E88: 2.314331796 | F88: 1.846998595 | G88: 1.968565125 | H88: 2.042581344
A89: ASFALTOS DILUÍDOS CM-30 | B89: 2015-07-01 | C89: 1.992222758 | D89: 1.992791635 | E89: 2.046769953 | F89: 1.782648603 | G89: 1.931671385 | H89: 1.942627362
A90: ASFALTOS DILUÍDOS CM-30 | B90: 2015-08-01 | C90: 2.307605931 | D90: 2.038089127 | E90: 2.252748105 | F90: 1.828097705 | G90: 1.939824481 | H90: 2.08193616
A91: ASFALTOS DILUÍDOS CM-30 | B91: 2015-09-01 | C91: 2.314289704 | D91: 2.095307531 | E91: 2.344561987 | F91: 1.942551091 | G91: 2.005352614 | H91: 2.168175541
A92: ASFALTOS DILUÍDOS CM-30 | B92: 2015-10-01 | C92: 2.329456663 | D92: 2.170570012 | E92: 2.43273012 | F92: 2.035624751 | G92: 2.110261148 | H92: 2.237533782
A93: ASFALTOS DILUÍDOS CM-30 | B93: 2015-11-01 | C93: 2.606056566 | D93: 2.437098304 | E93: 2.711612141 | F93: 2.280113896 | G93: 2.326446297 | H93: 2.474998781
A94: ASFALTOS DILUÍDOS CM-30 | B94: 2015-12-01 | C94: 2.635374006 | D94: 2.395920309 | E94: 2.693528386 | F94: 2.272528129 | G94: 2.330740659 | H94: 2.452848156
A95: ASFALTOS DILUÍDOS CM-30 | B95: 2016-01-01 | C95: 2.715863993 | D95: 2.373861647 | E95: 2.844670602 | F95: 2.263650658 | G95: 2.232631691 | H95: 2.400563394
A96: ASFALTOS DILUÍDOS CM-30 | B96: 2016-02-01 | C96: 2.80468316 | D96: 2.466846816 | E96: 2.791787007 | F96: 2.295637115 | G96: 2.346556173 | H96: 2.464348548
A97: ASFALTOS DILUÍDOS CM-30 | B97: 2016-03-01 | C97: 2.5805021 | D97: 2.470678753 | E97: 2.707688025 | F97: 2.235301999 | G97: 2.383115972 | H97: 2.423563924
A98: ASFALTOS DILUÍDOS CM-30 | B98: 2016-04-01 | C98: 2.942006312 | D98: 2.740742032 | E98: 2.759071855 | F98: 2.544439178 | G98: 2.710751632 | H98: 2.680274833
A99: ASFALTOS DILUÍDOS CM-30 | B99: 2016-05-01 | C99: 3.010579472 | D99: 2.650277047 | E99: 2.857121361 | F99: 2.575583152 | G99: 2.770413362 | H99: 2.70973327
A100: ASFALTOS DILUÍDOS CM-30 | B100: 2016-06-01 | C100: 2.909179844 | D100: 2.621385041 | E100: 2.943487281 | F100: 2.659109515 | G100: 2.684759555 | H100: 2.743619517
A101: ASFALTOS DILUÍDOS CM-30 | B101: 2016-07-01 | C101: 2.985740381 | D101: 2.591644045 | E101: 2.98927803 | F101: 2.604396599 | G101: 2.660884423 | H101: 2.745135539
A102: ASFALTOS DILUÍDOS CM-30 | B102: 2016-08-01 | C102: 2.935243919 | D102: 2.623917329 | E102: 2.970490854 | F102: 2.679486504 | G102: 2.727025649 | H102: 2.781385962
A103: ASFALTOS DILUÍDOS CM-30 | B103: 2016-09-01 | C103: 2.649136821 | D103: 2.521054851 | E103: 2.781583925 | F103: 2.51393313 | G103: 2.371271501 | H103: 2.595617128
A104: ASFALTOS DILUÍDOS CM-30 | B104: 2016-10-01 | C104: 2.626109257 | D104: 2.444469093 | E104: 2.781617873 | F104: 2.507383127 | G104: 2.38325399 | H104: 2.566999037
A105: ASFALTOS DILUÍDOS CM-30 | B105: 2016-11-01 | C105: 2.535087408 | D105: 2.374145527 | E105: 2.952768674 | F105: 2.481263765 | G105: 2.382206771 | H105: 2.542842366
A106: ASFALTOS DILUÍDOS CM-30 | B106: 2016-12-01 | C106: 2.50039107 | D106: 2.253413483 | E106: 3.038519458 | F106: 2.589438892 | G106: 2.395593424 | H106: 2.476439295
A107: ASFALTOS DILUÍDOS CM-30 | B107: 2017-01-01 | C107: 2.392875504 | D107: 2.232695674 | E107: 3.089080971 | F107: 2.535744039 | G107: 2.378694833 | H107: 2.374216192
A108: ASFALTOS DILUÍDOS CM-30 | B108: 2017-02-01 | C108: 2.68039414 | D108: 2.271897225 | E108: 2.764408032 | F108: 2.573933685 | G108: 2.384644398 | H108: 2.470721466
A109: ASFALTOS DILUÍDOS CM-30 | B109: 2017-03-01 | C109: 2.23884121 | D109: 2.386958079 | E109: 2.667220252 | F109: 2.372165947 | G109: 2.30121887 | H109: 2.378796986
A110: ASFALTOS DILUÍDOS CM-30 | B110: 2017-04-01 | C110: 2.420191398 | D110: 2.307969596 | E110: 2.794093014 | F110: 2.258409912 | G110: 2.256434297 | H110: 2.380268484
A111: ASFALTOS DILUÍDOS CM-30 | B111: 2017-05-01 | C111: 2.432106692 | D111: 2.167919128 | E111: 2.699836936 | F111: 2.255387192 | G111: 2.204026958 | H111: 2.361515909
A112: ASFALTOS DILUÍDOS CM-30 | B112: 2017-06-01 | C112: 2.428301776 | D112: 2.181938689 | E112: 2.756672055 | F112: 2.234549022 | G112: 2.305778546 | H112: 2.44553453
A113: ASFALTOS DILUÍDOS CM-30 | B113: 2017-07-01 | C113: 2.453752061 | D113: 2.218075334 | E113: 2.694625022 | F113: 2.414329247 | G113: 2.269601102 | H113: 2.473436106
A114: ASFALTOS DILUÍDOS CM-30 | B114: 2017-08-01 | C114: 2.447930976 | D114: 2.153112031 | E114: 2.595349952 | F114: 2.302919065 | G114: 2.170148667 | H114: 2.380876423
A115: ASFALTOS DILUÍDOS CM-30 | B115: 2017-09-01 | C115: 2.494551504 | D115: 2.14243989 | E115: 2.623166503 | F115: 2.371308095 | G115: 2.303698507 | H115: 2.393542204
A116: ASFALTOS DILUÍDOS CM-30 | B116: 2017-10-01 | C116: 2.349953944 | D116: 2.18056004 | E116: 2.614160957 | F116: 2.415254962 | G116: 2.20079573 | H116: 2.367947121
A117: ASFALTOS DILUÍDOS CM-30 | B117: 2017-11-01 | C117: 2.670126991 | D117: 2.433169195 | E117: 2.908627464 | F117: 2.58469482 | G117: 2.415192709 | H117: 2.602101348
A118: ASFALTOS DILUÍDOS CM-30 | B118: 2017-12-01 | C118: 2.587352645 | D118: 2.425358882 | E118: 2.906633765 | F118: 2.602890298 | G118: 2.42288976 | H118: 2.531764464
A119: ASFALTOS DILUÍDOS CM-30 | B119: 2018-01-01 | C119: 2.950360755 | D119: 2.662862923 | E119: 2.875953993 | F119: 2.620738484 | G119: 2.646955252 | H119: 2.735956369
A120: ASFALTOS DILUÍDOS CM-30 | B120: 2018-02-01 | C120: 2.677899567 | D120: 2.672498164 | E120: 2.942595474 | F120: 2.62043113 | G120: 2.567885662 | H120: 2.668369933
A121: ASFALTOS DILUÍDOS CM-30 | B121: 2018-03-01 | C121: 2.733363025 | D121: 2.589050022 | E121: 2.809172556 | F121: 2.561928393 | G121: 2.575946067 | H121: 2.634876584
A122: ASFALTOS DILUÍDOS CM-30 | B122: 2018-04-01 | C122: 2.75780112 | D122: 2.669553602 | E122: 2.773908242 | F122: 2.59547006 | G122: 2.556042394 | H122: 2.6643302
A123: ASFALTOS DILUÍDOS CM-30 | B123: 2018-05-01 | C123: 2.841213362 | D123: 2.672025877 | E123: 2.884501482 | F123: 2.686718021 | G123: 2.736485103 | H123: 2.77737896
A124: ASFALTOS DILUÍDOS CM-30 | B124: 2018-06-01 | C124: 3.008444789 | D124: 2.919605178 | E124: 3.158454886 | F124: 2.84673108 | G124: 2.953523993 | H124: 2.982291635
A125: ASFALTOS DILUÍDOS CM-30 | B125: 2018-07-01 | C125: 3.268237549 | D125: 3.036524094 | E125: 3.399360399 | F125: 3.026467598 | G125: 3.19779631 | H125: 3.164126546
A126: ASFALTOS DILUÍDOS CM-30 | B126: 2018-08-01 | C126: 3.56441315 | D126: 3.415193769 | E126: 3.707706206 | F126: 3.425079349 | G126: 3.356722461 | H126: 3.515558112
A127: ASFALTOS DILUÍDOS CM-30 | B127: 2018-09-01 | C127: 3.173913778 | D127: 3.445064118 | E127: 3.73526324 | F127: 3.385816186 | G127: 3.607309454 | H127: 3.483238429
A128: ASFALTOS DILUÍDOS CM-30 | B128: 2018-10-01 | C128: 3.487778119 | D128: 3.460508804 | E128: 3.721444057 | F128: 3.432525565 | G128: 3.60602088 | H128: 3.545390344
A129: ASFALTOS DILUÍDOS CM-30 | B129: 2018-11-01 | C129: 4.047272484 | D129: 3.814893312 | E129: 4.280131586 | F129: 4.178126777 | G129: 3.967681367 | H129: 3.990147183
A130: ASFALTOS DILUÍDOS CM-30 | B130: 2018-12-01 | C130: 3.951491146 | D130: 3.967113195 | E130: 4.341144202 | F130: 3.916766066 | G130: 3.911993357 | H130: 3.999742654
A131: ASFALTOS DILUÍDOS CM-30 | B131: 2019-01-01 | C131: 3.796855325 | D131: 3.870018889 | E131: 4.201901762 | F131: 3.954196997 | G131: 3.976786028 | H131: 3.933951911
A132: ASFALTOS DILUÍDOS CM-30 | B132: 2019-02-01 | C132: 3.516584073 | D132: 4.090361178 | E132: 4.498422953 | F132: 4.469942475 | G132: 4.254590254 | H132: 4.188544679
A133: ASFALTOS DILUÍDOS CM-30 | B133: 2019-03-01 | C133: 4.216758117 | D133: 4.361910728 | E133: 4.907194889 | F133: 4.398717729 | G133: 4.290823922 | H133: 4.360295279
A134: ASFALTOS DILUÍDOS CM-30 | B134: 2019-04-01 | C134: 4.281648205 | D134: 4.234661428 | E134: 4.531627215 | F134: 4.43722653 | G134: 4.466881471 | H134: 4.38082044
A135: ASFALTOS DILUÍDOS CM-30 | B135: 2019-05-01 | C135: 4.287644659 | D135: 4.190699738 | E135: 4.857910872 | F135: 4.267461963 | G135: 4.633806379 | H135: 4.366402151
A136: ASFALTOS DILUÍDOS CM-30 | B136: 2019-06-01 | C136: 4.475609892 | D136: 3.965052934 | E136: 4.66272934 | F136: 4.350600604 | G136: 4.211229921 | H136: 4.319323669
A137: ASFALTOS DILUÍDOS CM-30 | B137: 2019-07-01 | C137: 4.394498989 | D137: 4.058039305 | E137: 4.834221945 | F137: 4.094659414 | G137: 4.233003281 | H137: 4.346977757
A138: ASFALTOS DILUÍDOS CM-30 | B138: 2019-08-01 | C138: 4.48173504 | D138: 3.910662496 | E138: 4.576329081 | F138: 4.11161654 | G138: 4.255419985 | H138: 4.258345083
A139: ASFALTOS DILUÍDOS CM-30 | B139: 2019-09-01 | C139: 4.439578796 | D139: 3.859904896 | E139: 4.495256968 | F139: 4.111321475 | G139: 4.117359152 | H139: 4.251607085
A140: ASFALTOS DILUÍDOS CM-30 | B140: 2019-10-01 | C140: 4.335888631 | D140: 3.772324962 | E140: 4.459242357 | F140: 4.056084115 | G140: 3.942458011 | H140: 4.07740702
A141: ASFALTOS DILUÍDOS CM-30 | B141: 2019-11-01 | C141: 4.316238692 | D141: 3.910245509 | E141: 4.581841077 | F141: 4.07902404 | G141: 4.106621274 | H141: 4.094561212
A142: ASFALTOS DILUÍDOS CM-30 | B142: 2019-12-01 | C142: 4.199435972 | D142: 3.980119663 | E142: 4.673774805 | F142: 4.434268142 | G142: 3.986410312 | H142: 4.164691616
A143: ASFALTOS DILUÍDOS CM-30 | B143: 2020-01-01 | C143: 3.59298003 | D143: 3.895320617 | E143: 4.685420623 | F143: 4.387074674 | G143: 4.124467668 | H143: 4.053338937
A144: ASFALTOS DILUÍDOS CM-30 | B144: 2020-02-01 | C144: 3.642667016 | D144: 3.877395187 | E144: 4.438194543 | F144: 3.699944607 | G144: 3.778164011 | H144: 3.839010438
A145: ASFALTOS DILUÍDOS CM-30 | B145: 2020-03-01 | C145: 4.676668339 | D145: 3.791138977 | E145: 4.289222343 | F145: 3.718402734 | G145: 3.60908619 | H145: 3.93117068
A146: ASFALTOS DILUÍDOS CM-30 | B146: 2020-04-01 | C146: 4.313362837 | D146: 3.6957655 | E146: 4.255395321 | F146: 3.865895531 | G146: 3.732253382 | H146: 3.964125211
A147: ASFALTOS DILUÍDOS CM-30 | B147: 2020-05-01 | C147: 3.249134658 | D147: 3.637769912 | E147: 4.113544882 | F147: 3.760550026 | G147: 3.710618099 | H147: 3.65617504
A148: ASFALTOS DILUÍDOS CM-30 | B148: 2020-06-01 | C148: 4.017903076 | D148: 3.567031492 | E148: 4.277369171 | F148: 3.937886485 | G148: 3.625830069 | H148: 3.924524506
A149: ASFALTOS DILUÍDOS CM-30 | B149: 2020-07-01 | C149: 3.840497509 | D149: 3.51327048 | E149: 4.21549069 | F149: 3.954223886 | G149: 3.688841275 | H149: 3.843774448
A150: ASFALTOS DILUÍDOS CM-30 | B150: 2020-08-01 | C150: 4.174467203 | D150: 3.465394219 | E150: 4.277710211 | F150: 4.06746494 | G150: 3.62858863 | H150: 3.947166917
A151: ASFALTOS DILUÍDOS CM-30 | B151: 2020-09-01 | C151: 4.167371331 | D151: 3.746360816 | E151: 4.167424356 | F151: 3.795621791 | G151: 3.627729935 | H151: 3.973129945
A152: ASFALTOS DILUÍDOS CM-30 | B152: 2020-10-01 | C152: 4.408099527 | D152: 3.718989878 | E152: 4.278979192 | F152: 4.008746906 | G152: 3.591048183 | H152: 4.03964377
A153: ASFALTOS DILUÍDOS CM-30 | B153: 2020-11-01 | C153: 4.056306006 | D153: 3.969209281 | E153: 4.547900893 | F153: 4.27945542 | G153: 3.973347244 | H153: 4.175826149
A154: ASFALTOS DILUÍDOS CM-30 | B154: 2020-12-01 | C154: 4.132064138 | D154: 3.851632751 | E154: 4.426704386 | F154: 3.906236422 | G154: 3.8709398 | H154: 4.035347374
A155: ASFALTOS DILUÍDOS CM-30 | B155: 2021-01-01 | C155: 3.489836333 | D155: 3.951525937 | E155: 4.628269702 | F155: 4.011577011 | G155: 3.935136638 | H155: 3.917092391
A156: ASFALTOS DILUÍDOS CM-30 | B156: 2021-02-01 | C156: 4.099318116 | D156: 4.267109523 | E156: 4.832061615 | F156: 4.414202706 | G156: 4.149048932 | H156: 4.26819704
A157: ASFALTOS DILUÍDOS CM-30 | B157: 2021-03-01 | C157: 4.528355792 | D157: 4.239831731 | E157: 4.926314562 | F157: 4.269697839 | G157: 4.130655409 | H157: 4.377833785
A158: ASFALTOS DILUÍDOS CM-30 | B158: 2021-04-01 | C158: 4.349271867 | D158: 4.086995154 | E158: 4.477597522 | F158: 4.156113398 | G158: 4.044189822 | H158: 4.253361798
A159: ASFALTOS DILUÍDOS CM-30 | B159: 2021-05-01 | C159: 4.488889413 | D159: 4.707945815 | E159: 5.101489686 | F159: 4.784034896 | G159: 4.523986615 | H159: 4.790548085
A160: ASFALTOS DILUÍDOS CM-30 | B160: 2021-06-01 | C160: 4.010467711 | D160: 4.479592126 | E160: 5.113041212 | F160: 4.779739905 | G160: 4.721214307 | H160: 4.764890884
A161: ASFALTOS DILUÍDOS CM-30 | B161: 2021-07-01 | C161: 4.752234128 | D161: 4.559350506 | E161: 5.004758283 | F161: 4.80272972 | G161: 4.748550678 | H161: 4.817586047
A162: ASFALTOS DILUÍDOS CM-30 | B162: 2021-08-01 | C162: 5.085284532 | D162: 4.772501255 | E162: 5.198537142 | F162: 5.244735259 | G162: 4.76131175 | H162: 5.0981692
A163: ASFALTOS DILUÍDOS CM-30 | B163: 2021-09-01 | C163: 5.110300267 | D163: 4.538072365 | E163: 5.241721185 | F163: 5.017144197 | G163: 4.862861245 | H163: 5.016958886
A164: ASFALTOS DILUÍDOS CM-30 | B164: 2021-10-01 | C164: 5.080697261 | D164: 4.66826742 | E164: 5.119544199 | F164: 5.384779065 | G164: 4.658516432 | H164: 5.021294312
A165: ASFALTOS DILUÍDOS CM-30 | B165: 2021-11-01 | C165: 5.436518753 | D165: 5.08776781 | E165: 5.150063985 | F165: 5.634257884 | G165: 5.174530131 | H165: 5.228141289
A166: ASFALTOS DILUÍDOS CM-30 | B166: 2021-12-01 | C166: 5.184291386 | D166: 4.975486975 | E166: 5.572122251 | F166: 6.135655205 | G166: 5.01180992 | H166: 5.339565801
A167: ASFALTOS DILUÍDOS CM-30 | B167: 2022-01-01 | C167: 4.928191974 | D167: 5.023555623 | E167: 6.018407512 | F167: 5.214773026 | G167: 5.481979244 | H167: 5.250789679
A168: ASFALTOS DILUÍDOS CM-30 | B168: 2022-02-01 | C168: 5.545684189 | D168: 5.708628413 | E168: 6.011065894 | F168: 4.8651 | G168: 5.763367147 | H168: 5.736057428
A169: ASFALTOS DILUÍDOS CM-30 | B169: 2022-03-01 | C169: 6.326844735 | D169: 5.644687904 | E169: 5.930807225 | F169: 6.181141143 | G169: 5.498041682 | H169: 5.922781038
A170: ASFALTOS DILUÍDOS CM-30 | B170: 2022-04-01 | C170: 5.974220681 | D170: 5.832747324 | E170: 6.206692615 | F170: 5.720329997 | G170: 6.17800291 | H170: 6.012354229
A171: ASFALTOS DILUÍDOS CM-30 | B171: 2022-05-01 | C171: 5.354015586 | D171: 5.464335309 | E171: 6.007611639 | F171: 5.995095583 | G171: 5.49095009 | H171: 5.670722744
A172: ASFALTOS DILUÍDOS CM-30 | B172: 2022-06-01 | C172: 5.802443798 | D172: 5.316964203 | E172: 5.25267889 | F172: 5.813931518 | G172: 5.644996328 | H172: 5.469498687
A173: ASFALTOS DILUÍDOS CM-30 | B173: 2022-07-01 | C173: 5.965614765 | D173: 5.829314879 | E173: 5.919099711 | F173: 5.742484775 | G173: 5.674430543 | H173: 5.862020702
A174: ASFALTOS DILUÍDOS CM-30 | B174: 2022-08-01 | C174: 6.424230463 | D174: 5.758256878 | E174: 5.752352843 | F174: 5.791905352 | G174: 5.31271724 | H174: 5.823186051
A175: ASFALTOS DILUÍDOS CM-30 | B175: 2022-09-01 | C175: 5.540097074 | D175: 5.609921619 | E175: 5.963592489 | F175: 5.302181194 | G175: 4.977929161 | H175: 5.699429921
A176: ASFALTOS DILUÍDOS CM-30 | B176: 2022-10-01 | C176: 4.785670999 | D176: 4.727521094 | E176: 5.339105147 | F176: 4.851160007 | G176: 4.532580513 | H176: 5.041661715
A177: ASFALTOS DILUÍDOS CM-30 | B177: 2022-11-01 | C177: 7.765855923 | D177: 4.775654982 | E177: 5.237626127 | F177: 4.636383138 | G177: 4.460593179 | H177: 5.074993862
A178: ASFALTOS DILUÍDOS CM-30 | B178: 2022-12-01 | C178: 4.65725 | D178: 4.966905362 | E178: 5.655161554 | F178: 4.840935672 | G178: 4.661007861 | H178: 5.11324949
A179: ASFALTOS DILUÍDOS CM-30 | B179: 2023-01-01 | C179: 4.948950319 | D179: 5.056264922 | E179: 5.359597966 | F179: 4.426497959 | G179: 4.103267888 | H179: 4.715605129
A180: ASFALTOS DILUÍDOS CM-30 | B180: 2023-02-01 | C180: 5.407494667 | D180: 4.335771195 | E180: 4.746646601 | F180: 4.674884727 | G180: 4.014547173 | H180: 4.417800736
A181: ASFALTOS DILUÍDOS CM-30 | B181: 2023-03-01 | C181: 4.99131 | D181: 4.01354912 | E181: 4.74625028 | F181: 4.08071937 | G181: 4.082484954 | H181: 4.270345723
A182: ASFALTOS DILUÍDOS CM-30 | B182: 2023-04-01 | C182: 4.438479015 | D182: 4.094201354 | E182: 5.135816186 | F182: 4.368265095 | G182: 3.859308149 | H182: 4.153818797
A183: ASFALTOS DILUÍDOS CM-30 | B183: 2023-05-01 | C183: 5.018589297 | D183: 4.506282643 | E183: 5.616638293 | F183: 4.034756925 | G183: 4.063701717 | H183: 4.686492725
A184: ASFALTOS DILUÍDOS CM-30 | B184: 2023-06-01 | C184: 4.439644526 | D184: 4.495805354 | E184: 5.228174524 | F184: 3.772028745 | G184: 4.009042073 | H184: 4.588045148 | I184: =ROUND(E184*1000/(1-$L$2),2) -> 6299.01 | J184: =ROUND(I184*(1+$L$3),2) -> 7041.66
A185: ASFALTOS DILUÍDOS CM-70 | B185: 2008-11-01 | C185: *** | D185: *** | E185: *** | F185: *** | G185: *** | H185: ***
A186: ASFALTOS DILUÍDOS CM-70 | B186: 2008-12-01 | C186: *** | D186: *** | E186: *** | F186: *** | G186: *** | H186: ***
A187: ASFALTOS DILUÍDOS CM-70 | B187: 2009-01-01 | C187: *** | D187: *** | E187: *** | F187: *** | G187: *** | H187: ***
A188: ASFALTOS DILUÍDOS CM-70 | B188: 2009-02-01 | C188: *** | D188: *** | E188: *** | F188: *** | G188: *** | H188: ***
A189: ASFALTOS DILUÍDOS CM-70 | B189: 2009-03-01 | C189: *** | D189: *** | E189: *** | F189: *** | G189: *** | H189: ***
A190: ASFALTOS DILUÍDOS CM-70 | B190: 2009-04-01 | C190: *** | D190: *** | E190: *** | F190: *** | G190: *** | H190: ***
A191: ASFALTOS DILUÍDOS CM-70 | B191: 2009-05-01 | C191: *** | D191: *** | E191: *** | F191: *** | G191: *** | H191: ***
A192: ASFALTOS DILUÍDOS CM-70 | B192: 2009-06-01 | C192: *** | D192: *** | E192: *** | F192: *** | G192: *** | H192: ***
A193: ASFALTOS DILUÍDOS CM-70 | B193: 2009-07-01 | C193: *** | D193: *** | E193: *** | F193: *** | G193: *** | H193: ***
A194: ASFALTOS DILUÍDOS CM-70 | B194: 2009-08-01 | C194: *** | D194: *** | E194: *** | F194: *** | G194: *** | H194: ***
A195: ASFALTOS DILUÍDOS CM-70 | B195: 2009-09-01 | C195: *** | D195: *** | E195: *** | F195: *** | G195: *** | H195: ***
A196: ASFALTOS DILUÍDOS CM-70 | B196: 2009-10-01 | C196: *** | D196: *** | E196: *** | F196: *** | G196: *** | H196: ***
A197: ASFALTOS DILUÍDOS CM-70 | B197: 2009-11-01 | C197: *** | D197: *** | E197: *** | F197: *** | G197: *** | H197: ***
A198: ASFALTOS DILUÍDOS CM-70 | B198: 2009-12-01 | C198: *** | D198: *** | E198: *** | F198: *** | G198: *** | H198: ***
A199: ASFALTOS DILUÍDOS CM-70 | B199: 2010-01-01 | C199: *** | D199: *** | E199: *** | F199: *** | G199: *** | H199: ***
A200: ASFALTOS DILUÍDOS CM-70 | B200: 2010-02-01 | C200: *** | D200: *** | E200: *** | F200: *** | G200: *** | H200: ***
A201: ASFALTOS DILUÍDOS CM-70 | B201: 2010-03-01 | C201: *** | D201: *** | E201: *** | F201: *** | G201: *** | H201: ***
A202: ASFALTOS DILUÍDOS CM-70 | B202: 2010-04-01 | C202: *** | D202: *** | E202: *** | F202: *** | G202: *** | H202: ***
A203: ASFALTOS DILUÍDOS CM-70 | B203: 2010-05-01 | C203: *** | D203: *** | E203: *** | F203: *** | G203: *** | H203: ***
... 4250 more rows

Sheet ANP UF (hidden)
A1: Agência Nacional do Petróleo, Gás Natural e Biocombustíveis
A2: Superintendência de Defesa da Concorrência
A5: PREÇO MÉDIO MENSAL PONDERADO PRATICADO PELOS DISTRIBUIDORES DE PRODUTOS ASFÁLTICOS (R$/KG)
A7: Importante: | B7: Quando não houver declaração de venda do produto selecionado, ou quando a declaração de venda do produto ocorrer por menos de 03 (três) distribuidoras, a tabela indicará campo vazio.
A8: Mês | B8: Produto | C8: Estado | D8: Preço
A9: 2013-01-01 | B9: ASFALTOS DILUÍDOS CM-30 | C9: Acre | D9: -
A10: 2013-01-01 | B10: ASFALTOS DILUÍDOS CM-30 | C10: Alagoas | D10: -
A11: 2013-01-01 | B11: ASFALTOS DILUÍDOS CM-30 | C11: Amapá | D11: -
A12: 2013-01-01 | B12: ASFALTOS DILUÍDOS CM-30 | C12: Amazonas | D12: 1.453527021
A13: 2013-01-01 | B13: ASFALTOS DILUÍDOS CM-30 | C13: Bahia | D13: 1.464044142
A14: 2013-01-01 | B14: ASFALTOS DILUÍDOS CM-30 | C14: Ceará | D14: 1.447997934
A15: 2013-01-01 | B15: ASFALTOS DILUÍDOS CM-30 | C15: Distrito Federal | D15: -
A16: 2013-01-01 | B16: ASFALTOS DILUÍDOS CM-30 | C16: Espírito Santo | D16: -
A17: 2013-01-01 | B17: ASFALTOS DILUÍDOS CM-30 | C17: Goiás | D17: 1.686383065
A18: 2013-01-01 | B18: ASFALTOS DILUÍDOS CM-30 | C18: Maranhão | D18: -
A19: 2013-01-01 | B19: ASFALTOS DILUÍDOS CM-30 | C19: Mato Grosso | D19: -
A20: 2013-01-01 | B20: ASFALTOS DILUÍDOS CM-30 | C20: Mato Grosso do Sul | D20: -
A21: 2013-01-01 | B21: ASFALTOS DILUÍDOS CM-30 | C21: Minas Gerais | D21: 1.451106114
A22: 2013-01-01 | B22: ASFALTOS DILUÍDOS CM-30 | C22: Pará | D22: -
A23: 2013-01-01 | B23: ASFALTOS DILUÍDOS CM-30 | C23: Paraíba | D23: -
A24: 2013-01-01 | B24: ASFALTOS DILUÍDOS CM-30 | C24: Paraná | D24: 1.520125031
A25: 2013-01-01 | B25: ASFALTOS DILUÍDOS CM-30 | C25: Pernambuco | D25: -
A26: 2013-01-01 | B26: ASFALTOS DILUÍDOS CM-30 | C26: Piauí | D26: -
A27: 2013-01-01 | B27: ASFALTOS DILUÍDOS CM-30 | C27: Rio de Janeiro | D27: 1.330475106
A28: 2013-01-01 | B28: ASFALTOS DILUÍDOS CM-30 | C28: Rio Grande do Norte | D28: -
A29: 2013-01-01 | B29: ASFALTOS DILUÍDOS CM-30 | C29: Rio Grande do Sul | D29: 1.598611074
A30: 2013-01-01 | B30: ASFALTOS DILUÍDOS CM-30 | C30: Rondônia | D30: -
A31: 2013-01-01 | B31: ASFALTOS DILUÍDOS CM-30 | C31: Roraima | D31: -
A32: 2013-01-01 | B32: ASFALTOS DILUÍDOS CM-30 | C32: Santa Catarina | D32: -
A33: 2013-01-01 | B33: ASFALTOS DILUÍDOS CM-30 | C33: São Paulo | D33: 1.471008423
A34: 2013-01-01 | B34: ASFALTOS DILUÍDOS CM-30 | C34: Sergipe | D34: -
A35: 2013-01-01 | B35: ASFALTOS DILUÍDOS CM-30 | C35: Tocantins | D35: -
A36: 2013-02-01 | B36: ASFALTOS DILUÍDOS CM-30 | C36: Acre | D36: -
A37: 2013-02-01 | B37: ASFALTOS DILUÍDOS CM-30 | C37: Alagoas | D37: -
A38: 2013-02-01 | B38: ASFALTOS DILUÍDOS CM-30 | C38: Amapá | D38: -
A39: 2013-02-01 | B39: ASFALTOS DILUÍDOS CM-30 | C39: Amazonas | D39: 1.485578179
A40: 2013-02-01 | B40: ASFALTOS DILUÍDOS CM-30 | C40: Bahia | D40: 1.457014101
A41: 2013-02-01 | B41: ASFALTOS DILUÍDOS CM-30 | C41: Ceará | D41: 1.413192336
A42: 2013-02-01 | B42: ASFALTOS DILUÍDOS CM-30 | C42: Distrito Federal | D42: -
A43: 2013-02-01 | B43: ASFALTOS DILUÍDOS CM-30 | C43: Espírito Santo | D43: -
A44: 2013-02-01 | B44: ASFALTOS DILUÍDOS CM-30 | C44: Goiás | D44: 1.667459711
A45: 2013-02-01 | B45: ASFALTOS DILUÍDOS CM-30 | C45: Maranhão | D45: -
A46: 2013-02-01 | B46: ASFALTOS DILUÍDOS CM-30 | C46: Mato Grosso | D46: -
A47: 2013-02-01 | B47: ASFALTOS DILUÍDOS CM-30 | C47: Mato Grosso do Sul | D47: -
A48: 2013-02-01 | B48: ASFALTOS DILUÍDOS CM-30 | C48: Minas Gerais | D48: 1.452121117
A49: 2013-02-01 | B49: ASFALTOS DILUÍDOS CM-30 | C49: Pará | D49: -
A50: 2013-02-01 | B50: ASFALTOS DILUÍDOS CM-30 | C50: Paraíba | D50: -
A51: 2013-02-01 | B51: ASFALTOS DILUÍDOS CM-30 | C51: Paraná | D51: 1.493783173
A52: 2013-02-01 | B52: ASFALTOS DILUÍDOS CM-30 | C52: Pernambuco | D52: -
A53: 2013-02-01 | B53: ASFALTOS DILUÍDOS CM-30 | C53: Piauí | D53: -
A54: 2013-02-01 | B54: ASFALTOS DILUÍDOS CM-30 | C54: Rio de Janeiro | D54: 1.418234901
A55: 2013-02-01 | B55: ASFALTOS DILUÍDOS CM-30 | C55: Rio Grande do Norte | D55: -
A56: 2013-02-01 | B56: ASFALTOS DILUÍDOS CM-30 | C56: Rio Grande do Sul | D56: 1.435861782
A57: 2013-02-01 | B57: ASFALTOS DILUÍDOS CM-30 | C57: Rondônia | D57: -
A58: 2013-02-01 | B58: ASFALTOS DILUÍDOS CM-30 | C58: Roraima | D58: -
A59: 2013-02-01 | B59: ASFALTOS DILUÍDOS CM-30 | C59: Santa Catarina | D59: -
A60: 2013-02-01 | B60: ASFALTOS DILUÍDOS CM-30 | C60: São Paulo | D60: 1.434190204
A61: 2013-02-01 | B61: ASFALTOS DILUÍDOS CM-30 | C61: Sergipe | D61: -
A62: 2013-02-01 | B62: ASFALTOS DILUÍDOS CM-30 | C62: Tocantins | D62: -
A63: 2013-03-01 | B63: ASFALTOS DILUÍDOS CM-30 | C63: Acre | D63: -
A64: 2013-03-01 | B64: ASFALTOS DILUÍDOS CM-30 | C64: Alagoas | D64: -
A65: 2013-03-01 | B65: ASFALTOS DILUÍDOS CM-30 | C65: Amapá | D65: -
A66: 2013-03-01 | B66: ASFALTOS DILUÍDOS CM-30 | C66: Amazonas | D66: 1.507923921
A67: 2013-03-01 | B67: ASFALTOS DILUÍDOS CM-30 | C67: Bahia | D67: 1.449440325
A68: 2013-03-01 | B68: ASFALTOS DILUÍDOS CM-30 | C68: Ceará | D68: 1.401607485
A69: 2013-03-01 | B69: ASFALTOS DILUÍDOS CM-30 | C69: Distrito Federal | D69: -
A70: 2013-03-01 | B70: ASFALTOS DILUÍDOS CM-30 | C70: Espírito Santo | D70: -
A71: 2013-03-01 | B71: ASFALTOS DILUÍDOS CM-30 | C71: Goiás | D71: 1.661758701
A72: 2013-03-01 | B72: ASFALTOS DILUÍDOS CM-30 | C72: Maranhão | D72: -
A73: 2013-03-01 | B73: ASFALTOS DILUÍDOS CM-30 | C73: Mato Grosso | D73: -
A74: 2013-03-01 | B74: ASFALTOS DILUÍDOS CM-30 | C74: Mato Grosso do Sul | D74: -
A75: 2013-03-01 | B75: ASFALTOS DILUÍDOS CM-30 | C75: Minas Gerais | D75: 1.44324333
A76: 2013-03-01 | B76: ASFALTOS DILUÍDOS CM-30 | C76: Pará | D76: -
A77: 2013-03-01 | B77: ASFALTOS DILUÍDOS CM-30 | C77: Paraíba | D77: -
A78: 2013-03-01 | B78: ASFALTOS DILUÍDOS CM-30 | C78: Paraná | D78: 1.468995996
A79: 2013-03-01 | B79: ASFALTOS DILUÍDOS CM-30 | C79: Pernambuco | D79: -
A80: 2013-03-01 | B80: ASFALTOS DILUÍDOS CM-30 | C80: Piauí | D80: -
A81: 2013-03-01 | B81: ASFALTOS DILUÍDOS CM-30 | C81: Rio de Janeiro | D81: 1.438055574
A82: 2013-03-01 | B82: ASFALTOS DILUÍDOS CM-30 | C82: Rio Grande do Norte | D82: -
A83: 2013-03-01 | B83: ASFALTOS DILUÍDOS CM-30 | C83: Rio Grande do Sul | D83: 1.581425878
A84: 2013-03-01 | B84: ASFALTOS DILUÍDOS CM-30 | C84: Rondônia | D84: -
A85: 2013-03-01 | B85: ASFALTOS DILUÍDOS CM-30 | C85: Roraima | D85: -
A86: 2013-03-01 | B86: ASFALTOS DILUÍDOS CM-30 | C86: Santa Catarina | D86: -
A87: 2013-03-01 | B87: ASFALTOS DILUÍDOS CM-30 | C87: São Paulo | D87: 1.466061702
A88: 2013-03-01 | B88: ASFALTOS DILUÍDOS CM-30 | C88: Sergipe | D88: -
A89: 2013-03-01 | B89: ASFALTOS DILUÍDOS CM-30 | C89: Tocantins | D89: -
A90: 2013-04-01 | B90: ASFALTOS DILUÍDOS CM-30 | C90: Acre | D90: -
A91: 2013-04-01 | B91: ASFALTOS DILUÍDOS CM-30 | C91: Alagoas | D91: -
A92: 2013-04-01 | B92: ASFALTOS DILUÍDOS CM-30 | C92: Amapá | D92: -
A93: 2013-04-01 | B93: ASFALTOS DILUÍDOS CM-30 | C93: Amazonas | D93: 1.484796656
A94: 2013-04-01 | B94: ASFALTOS DILUÍDOS CM-30 | C94: Bahia | D94: 1.454836546
A95: 2013-04-01 | B95: ASFALTOS DILUÍDOS CM-30 | C95: Ceará | D95: 1.387073962
A96: 2013-04-01 | B96: ASFALTOS DILUÍDOS CM-30 | C96: Distrito Federal | D96: -
A97: 2013-04-01 | B97: ASFALTOS DILUÍDOS CM-30 | C97: Espírito Santo | D97: -
A98: 2013-04-01 | B98: ASFALTOS DILUÍDOS CM-30 | C98: Goiás | D98: 1.673481836
A99: 2013-04-01 | B99: ASFALTOS DILUÍDOS CM-30 | C99: Maranhão | D99: -
A100: 2013-04-01 | B100: ASFALTOS DILUÍDOS CM-30 | C100: Mato Grosso | D100: 1.921938422
A101: 2013-04-01 | B101: ASFALTOS DILUÍDOS CM-30 | C101: Mato Grosso do Sul | D101: -
A102: 2013-04-01 | B102: ASFALTOS DILUÍDOS CM-30 | C102: Minas Gerais | D102: 1.456556683
A103: 2013-04-01 | B103: ASFALTOS DILUÍDOS CM-30 | C103: Pará | D103: -
A104: 2013-04-01 | B104: ASFALTOS DILUÍDOS CM-30 | C104: Paraíba | D104: -
A105: 2013-04-01 | B105: ASFALTOS DILUÍDOS CM-30 | C105: Paraná | D105: 1.534419498
A106: 2013-04-01 | B106: ASFALTOS DILUÍDOS CM-30 | C106: Pernambuco | D106: -
A107: 2013-04-01 | B107: ASFALTOS DILUÍDOS CM-30 | C107: Piauí | D107: -
A108: 2013-04-01 | B108: ASFALTOS DILUÍDOS CM-30 | C108: Rio de Janeiro | D108: 1.418419516
A109: 2013-04-01 | B109: ASFALTOS DILUÍDOS CM-30 | C109: Rio Grande do Norte | D109: -
A110: 2013-04-01 | B110: ASFALTOS DILUÍDOS CM-30 | C110: Rio Grande do Sul | D110: 1.572582456
A111: 2013-04-01 | B111: ASFALTOS DILUÍDOS CM-30 | C111: Rondônia | D111: -
A112: 2013-04-01 | B112: ASFALTOS DILUÍDOS CM-30 | C112: Roraima | D112: -
A113: 2013-04-01 | B113: ASFALTOS DILUÍDOS CM-30 | C113: Santa Catarina | D113: -
A114: 2013-04-01 | B114: ASFALTOS DILUÍDOS CM-30 | C114: São Paulo | D114: 1.475764348
A115: 2013-04-01 | B115: ASFALTOS DILUÍDOS CM-30 | C115: Sergipe | D115: -
A116: 2013-04-01 | B116: ASFALTOS DILUÍDOS CM-30 | C116: Tocantins | D116: -
A117: 2013-05-01 | B117: ASFALTOS DILUÍDOS CM-30 | C117: Acre | D117: -
A118: 2013-05-01 | B118: ASFALTOS DILUÍDOS CM-30 | C118: Alagoas | D118: -
A119: 2013-05-01 | B119: ASFALTOS DILUÍDOS CM-30 | C119: Amapá | D119: -
A120: 2013-05-01 | B120: ASFALTOS DILUÍDOS CM-30 | C120: Amazonas | D120: -
A121: 2013-05-01 | B121: ASFALTOS DILUÍDOS CM-30 | C121: Bahia | D121: 1.492587424
A122: 2013-05-01 | B122: ASFALTOS DILUÍDOS CM-30 | C122: Ceará | D122: 1.376263021
A123: 2013-05-01 | B123: ASFALTOS DILUÍDOS CM-30 | C123: Distrito Federal | D123: -
A124: 2013-05-01 | B124: ASFALTOS DILUÍDOS CM-30 | C124: Espírito Santo | D124: -
A125: 2013-05-01 | B125: ASFALTOS DILUÍDOS CM-30 | C125: Goiás | D125: 1.668214819
A126: 2013-05-01 | B126: ASFALTOS DILUÍDOS CM-30 | C126: Maranhão | D126: -
A127: 2013-05-01 | B127: ASFALTOS DILUÍDOS CM-30 | C127: Mato Grosso | D127: 1.903098159
A128: 2013-05-01 | B128: ASFALTOS DILUÍDOS CM-30 | C128: Mato Grosso do Sul | D128: -
A129: 2013-05-01 | B129: ASFALTOS DILUÍDOS CM-30 | C129: Minas Gerais | D129: 1.464709716
A130: 2013-05-01 | B130: ASFALTOS DILUÍDOS CM-30 | C130: Pará | D130: -
A131: 2013-05-01 | B131: ASFALTOS DILUÍDOS CM-30 | C131: Paraíba | D131: -
A132: 2013-05-01 | B132: ASFALTOS DILUÍDOS CM-30 | C132: Paraná | D132: 1.489027849
A133: 2013-05-01 | B133: ASFALTOS DILUÍDOS CM-30 | C133: Pernambuco | D133: -
A134: 2013-05-01 | B134: ASFALTOS DILUÍDOS CM-30 | C134: Piauí | D134: -
A135: 2013-05-01 | B135: ASFALTOS DILUÍDOS CM-30 | C135: Rio de Janeiro | D135: 1.399256048
A136: 2013-05-01 | B136: ASFALTOS DILUÍDOS CM-30 | C136: Rio Grande do Norte | D136: -
A137: 2013-05-01 | B137: ASFALTOS DILUÍDOS CM-30 | C137: Rio Grande do Sul | D137: 1.539636961
A138: 2013-05-01 | B138: ASFALTOS DILUÍDOS CM-30 | C138: Rondônia | D138: -
A139: 2013-05-01 | B139: ASFALTOS DILUÍDOS CM-30 | C139: Roraima | D139: -
A140: 2013-05-01 | B140: ASFALTOS DILUÍDOS CM-30 | C140: Santa Catarina | D140: -
A141: 2013-05-01 | B141: ASFALTOS DILUÍDOS CM-30 | C141: São Paulo | D141: 1.451215936
A142: 2013-05-01 | B142: ASFALTOS DILUÍDOS CM-30 | C142: Sergipe | D142: -
A143: 2013-05-01 | B143: ASFALTOS DILUÍDOS CM-30 | C143: Tocantins | D143: -
A144: 2013-06-01 | B144: ASFALTOS DILUÍDOS CM-30 | C144: Acre | D144: -
A145: 2013-06-01 | B145: ASFALTOS DILUÍDOS CM-30 | C145: Alagoas | D145: -
A146: 2013-06-01 | B146: ASFALTOS DILUÍDOS CM-30 | C146: Amapá | D146: -
A147: 2013-06-01 | B147: ASFALTOS DILUÍDOS CM-30 | C147: Amazonas | D147: 1.586325818
A148: 2013-06-01 | B148: ASFALTOS DILUÍDOS CM-30 | C148: Bahia | D148: 1.44812907
A149: 2013-06-01 | B149: ASFALTOS DILUÍDOS CM-30 | C149: Ceará | D149: 1.382700989
A150: 2013-06-01 | B150: ASFALTOS DILUÍDOS CM-30 | C150: Distrito Federal | D150: -
A151: 2013-06-01 | B151: ASFALTOS DILUÍDOS CM-30 | C151: Espírito Santo | D151: -
A152: 2013-06-01 | B152: ASFALTOS DILUÍDOS CM-30 | C152: Goiás | D152: 1.699613867
A153: 2013-06-01 | B153: ASFALTOS DILUÍDOS CM-30 | C153: Maranhão | D153: -
A154: 2013-06-01 | B154: ASFALTOS DILUÍDOS CM-30 | C154: Mato Grosso | D154: 1.915975658
A155: 2013-06-01 | B155: ASFALTOS DILUÍDOS CM-30 | C155: Mato Grosso do Sul | D155: -
A156: 2013-06-01 | B156: ASFALTOS DILUÍDOS CM-30 | C156: Minas Gerais | D156: 1.475366896
A157: 2013-06-01 | B157: ASFALTOS DILUÍDOS CM-30 | C157: Pará | D157: -
A158: 2013-06-01 | B158: ASFALTOS DILUÍDOS CM-30 | C158: Paraíba | D158: -
A159: 2013-06-01 | B159: ASFALTOS DILUÍDOS CM-30 | C159: Paraná | D159: 1.432166974
A160: 2013-06-01 | B160: ASFALTOS DILUÍDOS CM-30 | C160: Pernambuco | D160: -
A161: 2013-06-01 | B161: ASFALTOS DILUÍDOS CM-30 | C161: Piauí | D161: -
A162: 2013-06-01 | B162: ASFALTOS DILUÍDOS CM-30 | C162: Rio de Janeiro | D162: 1.527420226
A163: 2013-06-01 | B163: ASFALTOS DILUÍDOS CM-30 | C163: Rio Grande do Norte | D163: -
A164: 2013-06-01 | B164: ASFALTOS DILUÍDOS CM-30 | C164: Rio Grande do Sul | D164: 1.59868349
A165: 2013-06-01 | B165: ASFALTOS DILUÍDOS CM-30 | C165: Rondônia | D165: -
A166: 2013-06-01 | B166: ASFALTOS DILUÍDOS CM-30 | C166: Roraima | D166: -
A167: 2013-06-01 | B167: ASFALTOS DILUÍDOS CM-30 | C167: Santa Catarina | D167: -
A168: 2013-06-01 | B168: ASFALTOS DILUÍDOS CM-30 | C168: São Paulo | D168: 1.432748187
A169: 2013-06-01 | B169: ASFALTOS DILUÍDOS CM-30 | C169: Sergipe | D169: -
A170: 2013-06-01 | B170: ASFALTOS DILUÍDOS CM-30 | C170: Tocantins | D170: -
A171: 2013-07-01 | B171: ASFALTOS DILUÍDOS CM-30 | C171: Acre | D171: -
A172: 2013-07-01 | B172: ASFALTOS DILUÍDOS CM-30 | C172: Alagoas | D172: -
A173: 2013-07-01 | B173: ASFALTOS DILUÍDOS CM-30 | C173: Amapá | D173: -
A174: 2013-07-01 | B174: ASFALTOS DILUÍDOS CM-30 | C174: Amazonas | D174: 1.509890931
A175: 2013-07-01 | B175: ASFALTOS DILUÍDOS CM-30 | C175: Bahia | D175: 1.436150016
A176: 2013-07-01 | B176: ASFALTOS DILUÍDOS CM-30 | C176: Ceará | D176: 1.424835845
A177: 2013-07-01 | B177: ASFALTOS DILUÍDOS CM-30 | C177: Distrito Federal | D177: -
A178: 2013-07-01 | B178: ASFALTOS DILUÍDOS CM-30 | C178: Espírito Santo | D178: -
A179: 2013-07-01 | B179: ASFALTOS DILUÍDOS CM-30 | C179: Goiás | D179: 1.663778454
A180: 2013-07-01 | B180: ASFALTOS DILUÍDOS CM-30 | C180: Maranhão | D180: -
A181: 2013-07-01 | B181: ASFALTOS DILUÍDOS CM-30 | C181: Mato Grosso | D181: 1.930589551
A182: 2013-07-01 | B182: ASFALTOS DILUÍDOS CM-30 | C182: Mato Grosso do Sul | D182: -
A183: 2013-07-01 | B183: ASFALTOS DILUÍDOS CM-30 | C183: Minas Gerais | D183: 1.476572352
A184: 2013-07-01 | B184: ASFALTOS DILUÍDOS CM-30 | C184: Pará | D184: -
A185: 2013-07-01 | B185: ASFALTOS DILUÍDOS CM-30 | C185: Paraíba | D185: -
A186: 2013-07-01 | B186: ASFALTOS DILUÍDOS CM-30 | C186: Paraná | D186: 1.477167274
A187: 2013-07-01 | B187: ASFALTOS DILUÍDOS CM-30 | C187: Pernambuco | D187: -
A188: 2013-07-01 | B188: ASFALTOS DILUÍDOS CM-30 | C188: Piauí | D188: -
A189: 2013-07-01 | B189: ASFALTOS DILUÍDOS CM-30 | C189: Rio de Janeiro | D189: 1.584464713
A190: 2013-07-01 | B190: ASFALTOS DILUÍDOS CM-30 | C190: Rio Grande do Norte | D190: -
A191: 2013-07-01 | B191: ASFALTOS DILUÍDOS CM-30 | C191: Rio Grande do Sul | D191: 1.612487925
A192: 2013-07-01 | B192: ASFALTOS DILUÍDOS CM-30 | C192: Rondônia | D192: -
A193: 2013-07-01 | B193: ASFALTOS DILUÍDOS CM-30 | C193: Roraima | D193: -
A194: 2013-07-01 | B194: ASFALTOS DILUÍDOS CM-30 | C194: Santa Catarina | D194: -
A195: 2013-07-01 | B195: ASFALTOS DILUÍDOS CM-30 | C195: São Paulo | D195: 1.507844909
A196: 2013-07-01 | B196: ASFALTOS DILUÍDOS CM-30 | C196: Sergipe | D196: -
A197: 2013-07-01 | B197: ASFALTOS DILUÍDOS CM-30 | C197: Tocantins | D197: -
A198: 2013-08-01 | B198: ASFALTOS DILUÍDOS CM-30 | C198: Acre | D198: -
A199: 2013-08-01 | B199: ASFALTOS DILUÍDOS CM-30 | C199: Alagoas | D199: -
A200: 2013-08-01 | B200: ASFALTOS DILUÍDOS CM-30 | C200: Amapá | D200: -
A201: 2013-08-01 | B201: ASFALTOS DILUÍDOS CM-30 | C201: Amazonas | D201: 1.509275641
A202: 2013-08-01 | B202: ASFALTOS DILUÍDOS CM-30 | C202: Bahia | D202: 1.416699323
A203: 2013-08-01 | B203: ASFALTOS DILUÍDOS CM-30 | C203: Ceará | D203: 1.447403364
... 4297 more rows
